Cogmind - Beta 16.1 @@@ ROGUE MODE // 2026.04.23 @ 00:28:55 Player: unq Result: Destroyed by P-80 Master with Gamma Rifle Performance ------------- Evolutions (7) 3500 Regions Visited (28) 5600 Robots Destroyed (441) 2205 Value Destroyed (18312) 18312 Prototype IDs (65) 1300 Alien Tech Used (3) 600 Bonus (14802) 14802 TOTAL SCORE: 46319 Bonus ------- High Alert Combat Kills 3265 Follower Combat Kills 2025 Awakened Behemoth Slayer 1000 Entered Garrisons 200 Met Data Miner 300 Acquired ECA 300 Met Zhirov 300 Built Enhanced Grunts 300 A7 Reached Mainframe 300 Met R17 at Cetus 500 Used Core Reset Matrix 3000 Met R17 at Research 2000 Scanned by Researcher 500 Met Sigix 2000 Friendly Fire -1188 Cogmind --------- Core Integrity 0/1300 Matter 59/300 Energy 98/100 System Corruption 45% Temperature Cool (0) Movement Core (50) Location -3/Quarantine Parts ------- > --- POWER (3) -------- (None) > --- PROPULSION (6) --- (None) > --- UTILITY (8) ------ Improved Targeting Computer > --- WEAPON (4) ------- (None) > --- INVENTORY (5) ---- Advanced ECM Suite Hacking Drone Bay (1/1) Compact HERF Cannon Sigix Containment Pod Peak State ------------ > --- POWER ------------ Hybrid Antimatter Reactor Light Particle Reactor Quantum Reactor > --- PROPULSION ------- Enhanced Flexi-carbon Leg Enhanced Armored Leg Myomer Leg Biometal Leg Enhanced Biometal Leg Centrium Leg > --- UTILITY ---------- Advanced Cooling System High-capacity Storage Unit Enhanced Optical Array Advanced Signal Interpreter Advanced Transmission Jammer Advanced Reaction Control System Centrium Medium Armor Plating Advanced Shield Generator > --- WEAPON ----------- HERF Cannon Compact HERF Cannon Compact HERF Cannon Compact Linear Accelerator > --- INVENTORY -------- Myomer Leg Shield Leg Wheel Advanced Heat Sink Improved Coolant Injector Advanced Energy Well Matter Compressor Improved Weapon Cycler Advanced ECM Suite Centrium Medium Armor Plating Advanced Point Defense System Hacking Drone Bay Transdimensional Reconstructor Neutron Cannon Enhanced Coil Gun Enhanced Coil Gun Rocket Array Fusion Bomb Launcher Advanced Remote Datajack CR-A16's Behemoth Slayer [Rating: 164] Favorites ----------- Power Reinforced Deuterium Engine Engine Reinforced Deuterium Engine Power Core Enhanced Nuclear Core Reactor Quantum Reactor Propulsion Light Treads Treads Light Treads Leg Myomer Leg Wheel Armored Huge Wheel Utility High-capacity Storage Unit Device Seismic Detector Storage High-capacity Storage Unit Processor Enhanced Optical Array Hackware Advanced System Shield Protection Hardened Medium Armor Plating Weapon Gauss Rifle Energy Gun Wave Gun Energy Cannon Compact HERF Cannon Ballistic Gun Gauss Rifle Ballistic Cannon Mini Assault Cannon Launcher Rocket Array Special Weapon Remote Datajack Impact Weapon Great Maul Slashing Weapon Scythe Piercing Weapon CR-A16's Behemoth Slayer Special Melee Weapon Datajack Build | -11 -10 -10 -10 -9 -8 -8 -8 -7 -7 -7 -6 -6 -6 -6 -6 -5 -5 -5 -5 -5 -4 -4 -4 -4 -4 -4 -3 -3 ------- Run | Yrd Mat Min Exi Min Mat Gar Mat Fac Low Zio Pro Fac Low Low Dat Pro Fac Upp Upp Zhi Pro Fac Ext Cet Arc Hub Res Qua Slots Evolved 14 | . . . . . 4 . . 2 . . . 2 . . . . 2 . . . . 2 . . . . 2 . Power 2 | . . . . . . . . . . . . 1 . . . . . . . . . . . . . . 1 . Propulsion 4 | . . . . . 2 . . 1 . . . . . . . . . . . . . 1 . . . . . . Utility 6 | . . . . . 1 . . 1 . . . . . . . . 2 . . . . 1 . . . . 1 . Weapon 2 | . . . . . 1 . . . . . . 1 . . . . . . . . . . . . . . . . Parts Attached 290 | 7 16 2 2 . 38 10 21 21 2 3 4 26 8 1 . . 13 6 . 5 2 14 19 1 4 4 52 9 Power 25 | 1 2 . . . 2 1 . 3 . . . 4 . . . . . . . 1 . 1 1 . . . 8 1 Engine 8 | 1 2 . . . 2 1 . . . . . 2 . . . . . . . . . . . . . . . . Core 5 | . . . . . . . . 3 . . . 2 . . . . . . . . . . . . . . . . Reactor 12 | . . . . . . . . . . . . . . . . . . . . 1 . 1 1 . . . 8 1 Propulsion 89 | 2 3 . 1 . 17 5 11 5 2 . . 10 . . . . 1 1 . . . 6 8 . 1 1 11 4 Treads 33 | 2 . . . . 4 5 11 4 2 . . 3 . . . . . 1 . . . 1 . . . . . . Leg 41 | . 1 . . . 12 . . . . . . 1 . . . . . . . . . 3 8 . 1 1 11 3 Wheel 15 | . 2 . 1 . 1 . . 1 . . . 6 . . . . 1 . . . . 2 . . . . . 1 Hover . | . . . . . . . . . . . . . . . . . . . . . . . . . . . . . Flight . | . . . . . . . . . . . . . . . . . . . . . . . . . . . . . Utility 92 | 1 6 1 . . 7 1 4 8 . . 3 6 4 1 . . 8 4 . 4 1 3 6 1 . 1 19 3 Device 55 | 1 3 . . . 2 1 2 4 . . 2 3 3 1 . . 4 3 . 1 . 3 4 . . 1 16 1 Storage 8 | . 3 . . . 1 . . 1 . . . . . . . . 1 . . 1 1 . . . . . . . Processor 6 | . . . . . . . 1 . . . . . . . . . 1 1 . . . . . . . . 2 1 Hackware 1 | . . . . . . . . . . . . . . . . . . . . 1 . . . . . . . . Protection 22 | . . 1 . . 4 . 1 3 . . 1 3 1 . . . 2 . . 1 . . 2 1 . . 1 1 Artifact . | . . . . . . . . . . . . . . . . . . . . . . . . . . . . . Weapon 84 | 3 5 1 1 . 12 3 6 5 . 3 1 6 4 . . . 4 1 . . 1 4 4 . 3 2 14 1 Energy Gun 17 | 2 . . . . 3 . 1 2 . . . 1 . . . . 3 . . . . . 1 . 2 . 2 . Energy Cannon 12 | . . . . . 2 . . . . 1 . 1 1 . . . . 1 . . 1 . . . . . 4 1 Ballistic Gun 33 | 1 1 1 1 . 6 . 5 1 . 1 1 3 1 . . . 1 . . . . 2 3 . . 1 4 . Ballistic Cannon 6 | . 1 . . . . . . 1 . . . . . . . . . . . . . 2 . . . 1 1 . Launcher 5 | . . . . . . 1 . 1 . . . . 1 . . . . . . . . . . . . . 2 . Special Weapon 4 | . 2 . . . . . . . . 1 . . . . . . . . . . . . . . . . 1 . Impact Weapon 1 | . . . . . . 1 . . . . . . . . . . . . . . . . . . . . . . Slashing Weapon 1 | . . . . . 1 . . . . . . . . . . . . . . . . . . . . . . . Piercing Weapon 2 | . . . . . . . . . . . . 1 1 . . . . . . . . . . . . . . . Special Melee Weapon 3 | . 1 . . . . 1 . . . . . . . . . . . . . . . . . . 1 . . . Unidentified Prototypes 29 | . . . . . 2 . 2 5 . . 1 1 1 . . . . 1 . 5 . 1 . 1 1 . 6 2 Parts Lost 80 | . 2 . . . 5 . . 5 3 . 5 14 4 . . . 1 2 . . . 1 3 . . 2 9 24 Power 10 | . . . . . . . . 2 . . . 3 . . . . . . . . . . . . . . 2 3 Propulsion 27 | . 2 . . . 2 . . 1 3 . 2 5 . . . . . 1 . . . 1 . . . . 1 9 Utility 24 | . . . . . 2 . . 2 . . 2 3 1 . . . 1 1 . . . . 2 . . 1 3 6 Weapon 19 | . . . . . 1 . . . . . 1 3 3 . . . . . . . . . 1 . . 1 3 6 Highest Loss Streak 13 | . 1 . . . 2 . . 2 3 . 2 10 4 . . . 1 2 . . . 1 2 . . 2 2 13 To Critical Strikes 2 | . . . . . 1 . . . . . . . . . . . . . . . . . . . . . . 1 Average Backups 19 | 2 10 14 15 14 15 20 19 22 22 24 24 19 19 19 20 20 19 19 20 19 20 19 19 20 20 19 19 17 Power . | . . . . . 1 1 1 . 2 2 2 . 1 1 1 1 1 1 1 1 1 1 1 1 1 1 . . Propulsion 2 | . 2 3 3 3 3 4 3 3 1 . . . 2 2 3 3 3 2 2 2 2 1 2 3 3 3 3 3 Utility 7 | . 2 4 5 5 3 7 7 8 7 7 8 8 8 10 11 11 9 7 7 7 8 8 8 9 9 8 8 7 Weapon 7 | 1 4 5 6 5 6 7 6 8 11 13 12 9 7 5 5 5 6 9 10 9 8 8 6 5 6 5 5 5 Tool/Special . | . . . . . . . . . . . . . . . . . . . . . . . . . . . . . Unused Backups 60 | . . 2 1 1 9 2 7 4 . 2 1 9 . 2 . . 2 . . 1 . 3 4 1 . . 7 2 Power 6 | . . . . . 1 . . . . 1 1 1 . . . . . . . . . 1 . . . . 1 . Propulsion 11 | . . 1 . 1 3 . 3 1 . . . . . . . . . . . . . 1 . . . . 1 . Utility 26 | . . . 1 . 1 2 3 . . . . 6 . 1 . . 2 . . . . . 2 1 . . 5 2 Weapon 16 | . . 1 . . 4 . 1 3 . . . 2 . 1 . . . . . 1 . 1 2 . . . . . Tool/Special 1 | . . . . . . . . . . 1 . . . . . . . . . . . . . . . . . . Average Slot Usage (%) 94 | . 97 100 87 100 99 100 100 94 97 94 95 83 85 86 63 86 87 87 88 63 87 90 97 95 100 99 99 88 Engine 5 | . 12 14 14 14 9 9 9 1 . . . 5 13 13 13 13 11 11 11 7 5 1 . . . . . . Core 1 | . . . . . . . . 5 7 7 7 4 . . . . . . . . . . . . . . . . Reactor 3 | . . . . . . . . . . . . . . . . . . . . 2 5 8 10 10 10 10 13 11 Treads 14 | . 11 . . . 11 36 36 27 33 38 34 9 . . . . . 4 5 5 4 6 . . . . . . Leg 9 | . . . . . 22 . . . . . . 2 . . . . . . . . . 7 30 31 31 31 27 23 Wheel 5 | . 15 28 28 28 1 . . 4 1 . . 10 20 20 20 20 17 11 11 11 11 7 . . . . . . Device 14 | . 13 13 14 9 9 9 9 14 15 15 14 11 12 13 13 13 17 17 17 15 16 20 19 16 21 20 19 16 Storage 7 | . 14 14 14 14 9 9 9 7 7 7 7 5 6 6 6 6 5 5 5 5 5 5 5 5 5 5 4 4 Processor 2 | . . . . . . . . . . . . . . . . . 4 4 5 5 5 5 5 5 5 5 8 8 Protection 5 | . . . . 4 8 9 9 7 7 7 6 5 6 6 6 6 4 5 5 5 5 5 5 5 5 5 4 3 Energy Gun 1 | . 13 3 . . 2 . . . . . . 1 . . . . 4 5 5 . 4 . 1 . 1 4 . 3 Energy Cannon 4 | . . . . . 5 9 . . . 5 1 2 4 5 . 5 3 4 5 . 5 3 3 4 1 . 14 7 Ballistic Gun 11 | . 8 10 2 14 16 12 24 20 14 1 19 18 20 13 1 13 7 5 5 . 5 10 11 14 15 13 1 . Ballistic Cannon 1 | . 3 10 2 14 . . . . 3 . . . . 6 . 6 5 5 5 . 5 5 3 . . . . 1 Impact Weapon 1 | . . . . . . 5 1 2 4 4 . 1 . . . . . . . . . . . . . . . . Peak Build Rating 164 | 6 9 8 9 9 35 29 36 52 51 43 51 65 76 65 63 63 87 86 86 88 90 119 132 130 132 132 164 163 Average Rating 68 | 4 7 8 7 8 28 27 31 44 40 37 41 50 58 60 43 59 77 83 84 61 87 107 126 124 131 130 154 140 On Entrance 63 | . 6 8 8 9 8 29 28 34 51 38 43 40 60 64 60 63 62 83 84 84 88 87 119 124 130 131 132 158 Avg Prop Armor Cover (%) 7 | . 5 . . . 8 . . 10 5 . . 11 . . . . . 5 5 7 5 8 9 . . 2 . . Naked Turns 24 | . . . . . . . . . . . . . . . . . . . . . . . . . . . . 24 Heaviest Build 146 | 10 29 31 31 33 71 71 72 112 111 112 118 118 108 101 104 101 105 105 104 101 105 116 121 119 110 110 146 132 Greatest Support 163 | 40 40 20 26 26 80 80 82 102 100 100 100 72 66 66 66 66 66 66 56 56 56 56 143 138 138 138 163 163 Greatest Overweight (x) 34 | . 4 1 1 1 2 . . 5 2 1 1 34 1 1 1 1 1 1 1 1 1 4 4 . . . 1 8 Average Overweight (x) . | . . 1 1 1 . . . 1 1 . 1 2 1 1 1 1 1 1 1 1 1 2 . . . . . . Largest Inventory Capacity 25 | 5 15 15 15 15 20 20 20 25 25 25 25 25 20 20 20 20 20 20 20 20 20 20 20 20 20 20 20 20 Average Capacity 20 | 5 11 15 15 15 15 20 20 23 25 25 25 20 20 20 20 20 20 20 20 20 20 20 20 20 20 20 20 19 Most Carried 25 | 4 15 15 15 15 20 20 20 25 25 25 25 25 20 20 20 20 20 20 20 20 20 20 20 20 20 20 20 20 Average Carried 19 | 2 10 14 14 14 15 20 19 22 22 24 24 19 19 19 20 20 19 19 19 19 19 19 19 19 20 19 19 18 Final Capacity 25 | 5 15 15 15 15 20 20 20 25 25 25 25 20 20 20 20 20 20 20 20 20 20 20 20 20 20 20 20 5 Final Carried 25 | 4 15 15 15 15 20 20 20 25 22 24 25 20 20 20 20 20 20 20 20 20 20 20 20 20 20 19 19 5 Class Distribution -------------------- 38% | Scavenger-Tank 13% | Scavenger-Skirmisher 13% | Scavenger-Mutant 12% | Mutant 11% | Tank 3% | Scavenger-Gunner Dominant Class ---------------- Mutant | -10/Materials Mutant | -10/Mines Mutant | -10/Exiles Mutant | -9/Mines Scavenger-Tank | -8/Materials Scavenger-Mutant | -8/Garrison Scavenger-Tank | -8/Materials Tank | -7/Factory Scavenger-Mutant | -7/Lower Caves Scavenger-Mutant | -7/Zion Scavenger-Tank | -6/Proximity Caves Scavenger-Tank | -6/Factory Scavenger-Tank | -6/Lower Caves Scavenger-Tank | -6/Lower Caves Scavenger-Mutant | -6/Data Miner Scavenger-Tank | -5/Proximity Caves Scavenger-Skirmisher | -5/Factory Scavenger-Skirmisher | -5/Upper Caves Scavenger-Skirmisher | -5/Upper Caves Mutant | -5/Zhirov Scavenger-Skirmisher | -4/Proximity Caves Scavenger-Tank | -4/Factory Scavenger-Tank | -4/Extension Commander-Skirmisher | -4/Cetus Scavenger-Tank | -4/Archives Scavenger-Tank | -4/Hub_04(d) Scavenger-Tank | -3/Research Scavenger-Assassin | -3/Quarantine Resources | -11 -10 -10 -10 -9 -8 -8 -8 -7 -7 -7 -6 -6 -6 -6 -6 -5 -5 -5 -5 -5 -4 -4 -4 -4 -4 -4 -3 -3 ----------- Run | Yrd Mat Min Exi Min Mat Gar Mat Fac Low Zio Pro Fac Low Low Dat Pro Fac Upp Upp Zhi Pro Fac Ext Cet Arc Hub Res Qua Matter Collected 17119 | 215 498 157 300 91 1600 597 1463 1835 451 169 558 875 723 124 . 84 563 265 194 . 326 902 1587 312 314 380 2133 403 Remotely 315 | . . . . . . . . 109 206 . . . . . . . . . . . . . . . . . . . Salvage Created 20831 | 122 511 83 . 71 2116 851 1845 2206 445 . 756 748 500 . . 3 749 104 49 . 351 1093 2456 118 682 1302 3399 271 Parts 922 | 6 28 2 . 7 111 36 100 86 23 . 43 30 12 . . . 22 5 5 . 18 47 98 2 35 76 106 24 Haulers Intercepted 15 | . 2 . . . 3 . 2 1 . . . 1 . . . . . . . . . 1 4 . . . 1 . Recyclers Shooed 17 | 1 1 . . . 2 . 4 . . . . 3 . . . . 1 . . . . 1 1 . . 1 1 1 Parts Field Recycled . | . . . . . . . . . . . . . . . . . . . . . . . . . . . . . Retrieved Matter . | . . . . . . . . . . . . . . . . . . . . . . . . . . . . . Parts Self-Destructed 123 | . . . . . . . . . 24 . 39 . 8 . . . . 3 37 . 12 . . . . . . . Prevented 23 | . . . . . . . . . 2 . 13 . 1 . . . . . 3 . 4 . . . . . . . Parts Restored 2 | . . . . . . . . . . . . . . . . . . . . . . . . . . . 2 . Broken 2 | . . . . . . . . . . . . . . . . . . . . . . . . . . . 2 . Kills | -11 -10 -10 -10 -9 -8 -8 -8 -7 -7 -7 -6 -6 -6 -6 -6 -5 -5 -5 -5 -5 -4 -4 -4 -4 -4 -4 -3 -3 ------- Run | Yrd Mat Min Exi Min Mat Gar Mat Fac Low Zio Pro Fac Low Low Dat Pro Fac Upp Upp Zhi Pro Fac Ext Cet Arc Hub Res Qua Combat Hostiles Destroyed 302 | . 8 2 . 5 35 17 29 37 11 . 18 8 6 . . 2 6 5 1 . 13 7 24 2 2 13 45 6 Melee 1 | . . . . . . . . . . . . 1 . . . . . . . . . . . . . . . . Guns 169 | . 6 . . 3 26 10 29 35 5 . 14 6 4 . . . 5 . . . 1 2 10 1 . 10 1 1 Cannons 72 | . . 2 . 2 9 7 . . 3 . 3 1 2 . . . 1 1 1 . 3 5 10 . 2 . 18 2 AOE 38 | . 2 . . . . . . 2 3 . 1 . . . . 2 . 4 . . 8 . . . . 3 10 3 Classes Destroyed 26 | 2 4 . . 1 4 2 . 2 1 . 2 1 . . . . . . . . . . . . . 1 3 3 Worker 29 | . 6 . . . 1 . 2 4 . . . 2 . . . . 1 . . . . 4 1 . . 3 2 3 Builder 23 | . . . . . 2 . 2 2 . . . . . . . . . . . . . . 5 . . 9 . 3 Tunneler 8 | 3 . . . . . . 1 1 . . . 1 . . . . . . . . . . 1 . . 1 . . Hauler 15 | . 2 . . . 3 . 2 1 . . . 1 . . . . . . . . . 1 4 . . . 1 . Recycler 22 | 1 . . . . 4 . 1 3 . . . 1 . . . . 3 . . . . 4 1 . . 3 1 . Carrier 1 | . . . . . . . . . . . . . . . . . . . . . . . . . . . 1 . Minesweeper 1 | . . . . . . . . . 1 . . . . . . . . . . . . . . . . . . . Mechanic 1 | . . . . . . . . . . . . . . . . . . . . . . . . . . . . 1 Operator 13 | . . . . . 1 . 1 . . . . . . . . . . . . . . 1 1 . 8 1 . . Drone 4 | . . . . . . . . . . . 2 . . . . 2 . . . . . . . . . . . . Watcher 19 | . 2 . . . 2 . 3 2 . . . 1 . . . . . . . . . 2 2 . . . 5 . Swarmer 60 | . . . . 4 4 2 3 3 3 . 7 . 2 . . . . 4 . . 11 . 3 . . 1 13 . Saboteur 1 | . . . . . . . . . . . . . . . . . . . . . . . . . . . . 1 Grunt 117 | . 8 2 . 1 21 9 19 18 8 . 3 3 3 . . . 3 . . . 1 1 7 . . 3 5 2 Brawler 11 | . . . . . . . . 3 . . 1 1 . . . . 1 . . . . . 2 . . 2 1 . Duelist 5 | . . . . . . . . 1 . . 2 . . . . . . . . . . . 1 . . . . 1 Protector 2 | . . . . . . . . . . . 1 . . . . . . . . . . . . . . . . 1 Researcher 1 | . . . . . . . . . . . . . . . . . . . . . . . . . . . . 1 Sentry 42 | . . . . . 8 5 6 4 . . 1 2 1 . . . 1 . . . 1 2 5 . 2 2 2 . Demolisher 3 | . . . . . . 1 . . . . . . . . . . . . . . . . . . . . 2 . Specialist 2 | . . . . . . . . . . . . . . . . . . . . . . . . . . 2 . . Hunter 15 | . . . . . 2 . 1 . . . 1 . . . . . . 1 . . . . 4 . . 2 4 . Programmer 16 | . . . . . . . . 8 . . . 1 . . . . 1 . 1 . . 4 . . . 1 . . Behemoth 3 | . . . . . . . . . . . . 1 . . . . . . . . . . 2 . . . . . Cetus Guard 2 | . . . . . . . . . . . . . . . . . . . . . . . . 2 . . . . Lightning 1 | . . . . . . . . . . . . . . . . . . . . . . . . . . . . 1 Striker 18 | . . . . . . . . . . . . . . . . . . . . . . . . . . . 18 . Thug 3 | . . . . . . 1 . . . . . . . . . . . . . . . . . . 2 . . . Butcher 2 | . . . . . . 1 . . . . . . . . . . . . . . . . . . 1 . . . Revision 1 | . . . . . . . . . . . . . . . . . . . . . . . . . . . 1 . Best Kill Streak 18 | 3 6 2 . 4 7 6 9 6 7 . 5 6 5 . . 1 5 4 1 . 5 3 10 1 3 18 8 6 Combat Bots Only 8 | . 2 2 . 4 5 6 4 4 7 . 5 4 5 . . 1 4 4 1 . 5 2 4 1 2 4 8 4 Max Kills in Single Turn 9 | 1 6 1 . 2 1 2 3 3 3 . 1 1 1 . . 1 1 3 1 . 4 2 2 1 3 9 5 2 Gunslinging 1 | . . . . . . . 1 . . . . . . . . . . . . . . . . . . . . . Exploded 5 | . 2 . . . . . . 2 3 . 1 . . . . 1 . 3 . . 4 . . . . 2 5 1 Melee 1 | . . . . . . . . . . . . 1 . . . . . . . . . . . . . . . . Uniques/NPCs Destroyed . | . . . . . . . . . . . . . . . . . . . . . . . . . . . . . Combat | -11 -10 -10 -10 -9 -8 -8 -8 -7 -7 -7 -6 -6 -6 -6 -6 -5 -5 -5 -5 -5 -4 -4 -4 -4 -4 -4 -3 -3 -------- Run | Yrd Mat Min Exi Min Mat Gar Mat Fac Low Zio Pro Fac Low Low Dat Pro Fac Upp Upp Zhi Pro Fac Ext Cet Arc Hub Res Qua Hostile Shots Fired 1798 | . 54 5 . 30 179 67 87 251 55 . 98 119 123 . . . 25 32 6 . 13 37 117 14 . 137 146 203 Missed 547 | . 12 3 . 8 50 25 25 78 16 . 34 31 25 . . . 8 12 3 . 2 4 46 4 . 61 64 36 Intercepted 2 | . . . . . . . . . . . . . . . . . . . . . . . . . . . 2 . Hits 1251 | . 42 2 . 22 129 42 62 173 39 . 64 88 98 . . . 17 20 3 . 11 33 71 10 . 76 82 167 Melee 53 | . . . . . . . . 10 . . 2 . . . . . . . . . . . 2 . . . 21 18 Projectile 1198 | . 42 2 . 22 129 42 62 163 39 . 62 88 98 . . . 17 20 3 . 11 33 69 10 . 76 61 149 AOE 5 | . . . . . . 2 . . . . . 1 . . . . . . . . . . . . . . 2 . Critical Strikes 73 | . . . . . 6 1 3 6 2 . 1 1 . . . . 1 . . . . 7 2 1 . 6 7 29 Part Disruptions 3 | . . . . . . . . . . . . . . . . . . . . . . . . . . 2 . 1 Damage Taken 23006 | . 555 21 . 167 1783 667 966 2414 611 . 1072 1732 1025 . . 48 343 556 55 . 212 749 1430 215 . 1366 2332 4687 Core 3268 | . 100 11 . 37 221 36 59 285 47 . 94 623 37 . . . 47 59 . . 39 52 110 15 . 168 240 988 Absorbed by Shields 1961 | . . . . . . . . . . . 180 56 76 . . . 47 . . . . 217 247 53 . . 677 408 Redirected to Shielding 26 | . . . . . . . . . . . 6 20 . . . . . . . . . . . . . . . . Ignored by Resistances 235 | . . . . . 112 . . 123 . . . . . . . . . . . . . . . . . . . . Regen/Repaired (Parts) 1206 | . . . . . 314 . 165 203 . 112 . . . . . . . . . . . 205 207 . . . . . Core Remaining (%) 56 | 100 . . . 40 . . 42 . . . 39 . . . . 22 . . . . 85 . . . . 70 . . Volleys Fired 1122 | 8 68 4 . 11 133 38 81 103 21 . 38 39 25 25 . 10 35 41 26 . 28 40 100 20 16 37 143 32 Largest 4 | 2 2 2 . 2 3 3 3 3 3 . 3 4 4 2 . 1 4 4 4 . 4 4 4 4 4 4 4 4 Hottest 366 | 70 150 50 . 50 131 131 84 101 96 . 167 217 164 115 . 90 235 235 244 . 244 244 228 202 193 241 366 282 Shots Fired 2947 | 16 133 8 . 21 372 103 242 304 56 . 109 118 56 27 . 10 86 52 40 . 40 124 336 56 63 138 362 75 Gun 1914 | 16 121 4 . 10 282 66 242 303 39 . 88 103 36 1 . . 52 10 15 . 5 72 188 35 48 129 24 25 Cannon 973 | . . 4 . 11 90 34 . . 16 . 20 15 20 26 . 8 34 39 25 . 30 52 148 21 15 7 311 47 Launcher 46 | . . . . . . 3 . 1 1 . 1 . . . . 2 . 3 . . 5 . . . . 2 25 3 Special 14 | . 12 . . . . . . . . . . . . . . . . . . . . . . . . . 2 . Kinetic 1881 | 8 58 8 . 21 244 66 242 303 55 . 85 102 40 2 . . 34 6 14 . 7 101 211 44 47 96 42 45 Thermal 630 | 8 75 . . . 128 34 . . . . 3 16 13 25 . 8 52 43 26 . 16 22 37 . 1 33 65 25 Explosive 34 | . . . . . . 3 . 1 1 . 1 . . . . 2 . 3 . . 5 . . . . 2 13 3 Electromagnetic 400 | . . . . . . . . . . . 20 . 3 . . . . . . . 12 1 88 12 15 7 240 2 Robot Hit Streak 21 | 5 17 5 . 4 21 17 17 17 5 . 19 9 10 . . . 6 2 3 . 4 10 13 4 5 7 11 6 Robot Miss Streak 9 | 2 2 1 . 5 5 3 3 3 3 . 9 6 5 . . . 4 3 4 . 3 5 7 4 4 7 6 3 Penetration Max 1 | . . . . . 1 . 1 1 . . 1 . 1 . . . . . . . 1 1 1 . 1 1 . . Secondary Targets 17 | . 1 . . . . . 2 4 . . 3 2 2 . . . . . . . . . . . . 3 . . Max Gunslinging Chain 1 | . 1 . . . . . 1 1 . . 1 1 1 . . . . . . . . . . . . 1 . . Shots Hit Robots 1633 | 9 78 5 5 9 205 69 168 232 25 . 72 70 29 . . . 44 6 7 . 10 67 192 31 33 71 158 38 Core Hits 819 | 5 29 3 . 5 88 30 64 96 22 . 38 34 17 . . 3 25 6 6 . 17 28 85 12 22 71 81 32 Critical Kills 11 | . . . . . 2 . 2 2 1 . . . 1 . . . . . . . . . 1 . 1 1 . . Critical Parts Destroyed 18 | . . . . . 1 . 3 7 1 . . 1 1 . . . . . . . . 1 2 . . 1 . . Critical Strikes 61 | . 3 . . 1 6 1 5 9 2 . 1 2 5 . . . 1 . . . . 5 4 1 2 3 7 3 Burn 6 | . 3 . . . 3 . . . . . . . . . . . . . . . . . . . . . . . Destroy 29 | . . . . . 3 1 5 8 2 . . 1 2 . . . . . . . . 1 3 . 1 2 . . Blast 9 | . . . . 1 . . . . . . . . . . . . 1 . . . . 2 . 1 . . 2 2 Corrupt 9 | . . . . . . . . . . . 1 . 1 . . . . . . . . . 1 . . 1 5 . Smash 1 | . . . . . . . . 1 . . . . . . . . . . . . . . . . . . . . Impale 7 | . . . . . . . . . . . . 1 2 . . . . . . . . 2 . . 1 . . 1 Melee Attacks 211 | . . . 6 . 1 66 8 22 9 1 2 22 8 13 . . 1 . . . 7 6 1 . 8 . 18 12 Impact 109 | . . . . . . 59 8 22 9 1 2 8 . . . . . . . . . . . . . . . . Slashing 1 | . . . . . 1 . . . . . . . . . . . . . . . . . . . . . . . Piercing 88 | . . . . . . . . . . . . 14 8 13 . . 1 . . . 7 6 1 . 8 . 18 12 Sneak Attacks 37 | . . . 5 . . 7 1 6 1 . . . . . . . 1 . . . . 6 . . 4 . 4 2 Combat Hostiles . | . . . . . . . . . . . . . . . . . . . . . . . . . . . . . Follow-up Attacks . | . . . . . . . . . . . . . . . . . . . . . . . . . . . . . Damage Inflicted 53231 | 100 1554 92 . 186 3929 1504 3984 6555 996 . 1711 1983 1081 . . 169 1295 349 264 . 1109 2914 6101 1187 1494 3238 7985 3451 Guns 26663 | 100 1007 10 . 61 2847 804 3819 5388 343 . 1212 1312 437 . . . 819 65 119 . 67 1192 2913 552 794 2057 307 438 Cannons 15003 | . . 82 . 125 1082 554 . . 130 . 367 158 127 . . . 402 68 145 . 302 911 2791 635 232 85 5686 1121 Explosions 8231 | . 542 . . . . 146 . 611 366 . 132 271 . . . 169 . 216 . . 740 350 314 . . 1004 1588 1782 Melee 3126 | . . . . . . . 125 538 157 . . 232 517 . . . 74 . . . . 461 42 . 468 . 404 108 Ramming 208 | . 5 . . . . . 40 18 . . . 10 . . . . . . . . . . 41 . . 92 . 2 Kinetic 27716 | 24 534 92 . 186 2379 804 3819 5388 473 . 1212 1292 527 . . . 540 86 124 . 97 1806 3447 817 794 1540 764 971 Thermal 7974 | 76 1015 . . . 1550 554 . . . . 100 449 . . . . 681 47 140 . 156 449 778 . . 517 874 588 Explosive 5609 | . . . . . . 146 . 611 366 . 32 . . . . 169 . 216 . . 584 . . . . 1004 699 1782 Electromagnetic 8598 | . . . . . . . . . . . 367 . 37 . . . . . . . 272 198 1793 370 232 85 5244 . Impact 820 | . . . . . . . 125 538 157 . . . . . . . . . . . . . . . . . . . Slashing . | . . . . . . . . . . . . . . . . . . . . . . . . . . . . . Piercing 2306 | . . . . . . . . . . . . 232 517 . . . 74 . . . . 461 42 . 468 . 404 108 Highest Corruption 44 | . 1 1 1 1 . . . 8 8 8 . 3 4 4 4 4 2 9 9 9 9 4 4 4 4 9 1 44 Average Corruption 4 | . 1 1 1 1 . . . 5 8 8 . 3 3 4 4 4 1 8 9 9 9 1 4 4 4 5 1 9 Corruption Purged 1 | . . . . . . . . . . . . . . . . . . . . . . . . . . . . 1 Corruption Blocked . | . . . . . . . . . . . . . . . . . . . . . . . . . . . . . Effects 408 | . 16 5 4 3 . . . 82 26 3 . 7 20 21 3 10 2 32 27 9 26 6 44 10 17 15 6 14 Message Errors 91 | . 5 1 1 . . . . 16 8 . . 2 6 6 1 1 . 5 5 1 4 2 8 1 5 4 4 5 Matter Fused 94 | . 3 3 . . . . . 19 5 1 . 1 3 3 . 1 . 7 6 2 5 . 15 3 7 5 1 4 Heat Flow Errors 50 | . 1 1 . 1 . . . 14 1 1 . 1 1 1 . 4 1 4 3 2 3 2 6 . . 2 1 . Energy Discharges 56 | . . . 3 1 . . . 14 3 1 . 1 3 1 1 1 1 6 5 3 4 . 4 2 . 1 . 1 Parts Fused 5 | . . . . . . . . 1 . . . . . . . . . 2 . . 1 . 1 . . . . . Data Loss (minor) 44 | . 5 . . . . . . 6 2 . . 2 2 2 1 2 . 3 1 . 7 1 3 3 3 . . 1 Data Loss (major) 18 | . . . . . . . . 4 3 . . . 2 3 . . . 1 2 . 1 . 1 . . 1 . . Misfires 22 | . 2 . . . . . . 3 . . . . 2 2 . . . 3 5 . 1 . 4 . . . . . Alerts 11 | . . . . . . . . 2 1 . . . 1 2 . 1 . . . 1 . 1 1 . 1 . . . Weapon Failures 17 | . . . . 1 . . . 3 3 . . . . 1 . . . 1 . . . . 1 1 1 2 . 3 Overload Shots 1 | . . . . . . . . . . . . . . . . . . . . . . . . . . . 1 . Overflow Damage 1990 | . 17 . . . 14 9 8 308 113 . 11 29 276 . . . . . . . 106 314 113 3 184 20 360 105 Projectiles 466 | . . . . . 14 9 . . . . . 4 10 . . . . . . . . 114 61 3 30 . 175 46 Explosions 432 | . 17 . . . . . . 5 . . 11 25 . . . . . . . . 106 49 9 . . 20 131 59 Melee 1092 | . . . . . . . 8 303 113 . . . 266 . . . . . . . . 151 43 . 154 . 54 . Knockbacks 34 | . . 1 . 1 2 . . 4 2 . . . . . . . 4 . 1 . . 3 3 . . 1 6 6 Impact 6 | . . . . . . . . 4 . . . . . . . . . . . . . . 1 . . 1 . . Kinetic 26 | . . 1 . . 2 . . . 2 . . . . . . . 4 . 1 . . 2 2 . . . 6 6 Secondary 2 | . . . . 1 . . . . . . . . . . . . . . . . . 1 . . . . . . Self-Inflicted Damage 1008 | . 63 . . . . 19 . 80 . . 78 5 . . . 48 . . . . 31 160 . . . 57 234 233 Shots 32 | . 1 . . . . 1 . 5 . . 3 . . . . 1 . . . . 1 4 . . . 3 10 3 Rammed 8 | . 1 . . . . . 3 1 . . . 1 . . . . . . . . . . . . . . . 2 Targets Rammed 13 | . 1 . . . . . 4 1 . . . 1 . . . . . . . . . . 1 . . 3 . 2 Kicked 4 | . . . . . . . . . . . . . . . . . . . . . . . 1 . . 3 . . Crushed 1 | . . . . . . . 1 . . . . . . . . . . . . . . . . . . . . . Highest Temperature 515 | 27 228 126 . 206 243 189 163 339 256 86 72 471 434 306 . 360 353 405 327 264 387 260 515 18 . 208 501 39 Average Temperature 108 | 13 71 36 . 106 53 65 46 94 41 46 31 145 157 123 . 129 123 155 118 124 144 85 140 12 . 58 128 15 Received Heat Transfer 4635 | . 282 12 . . 810 261 486 741 225 . 135 303 329 . . . 63 27 9 . 12 42 145 22 . 181 179 371 Effects 48 | . . . . . . . . 5 . . . 7 8 2 . . 3 2 . . 5 . 7 . . . 9 . Shutdowns 18 | . . . . . . . . . . . . 3 4 . . . . 1 . . 1 . 5 . . . 4 . Energy Bleed 5 | . . . . . . . . . . . . 1 . . . . . 1 . . 1 . 1 . . . 1 . Interference 17 | . . . . . . . . 5 . . . 3 . 2 . . 2 . . . 3 . 1 . . . 1 . Matter Decay 2 | . . . . . . . . . . . . . 2 . . . . . . . . . . . . . . . Short Circuit 2 | . . . . . . . . . . . . . . . . . . . . . . . . . . . 2 . Damage (minor) 4 | . . . . . . . . . . . . . 2 . . . 1 . . . . . . . . . 1 . Siege Activations . | . . . . . . . . . . . . . . . . . . . . . . . . . . . . . Martial Activations . | . . . . . . . . . . . . . . . . . . . . . . . . . . . . . Shielding Activations . | . . . . . . . . . . . . . . . . . . . . . . . . . . . . . Robots Disrupted 3 | . . . . . . . . . . . . . . . . . . . . . . 1 . . . . 2 . Combat Hostiles 2 | . . . . . . . . . . . . . . . . . . . . . . . . . . . 2 . Robots Corrupted 29 | . . . . . . . 1 4 . . . . . . . . . . . . 1 . 5 1 . . 17 . Combat Hostiles 22 | . . . . . . . . . . . . . . . . . . . . . 1 . 4 1 . . 16 . Parts Fried 74 | . . . . . . . 3 8 3 . 2 . . . . . . . . . 2 . 10 1 2 . 43 . Impact Corruptions 20 | . . . . . . . 1 12 5 . . . . . . . . . . . . 1 1 . . . . . Robots Melted . | . . . . . . . . . . . . . . . . . . . . . . . . . . . . . Combat Hostiles . | . . . . . . . . . . . . . . . . . . . . . . . . . . . . . Parts Melted 10 | 1 3 . . . 2 1 . . . . . 1 . . . . . 1 . . . . 1 . . . . . Heat Transferred 10458 | 222 2078 . . . 2997 814 . . . . 100 537 . . . . 1001 74 74 . 50 100 953 . . 666 200 592 Parts Sabotaged . | . . . . . . . . . . . . . . . . . . . . . . . . . . . . . Parts Stolen . | . . . . . . . . . . . . . . . . . . . . . . . . . . . . . Parts Stripped . | . . . . . . . . . . . . . . . . . . . . . . . . . . . . . Power Chain Reactions 8 | . . . . . . . . . . . 1 . . . . . . . . . 1 . 2 . . . 4 . Alert | -11 -10 -10 -10 -9 -8 -8 -8 -7 -7 -7 -6 -6 -6 -6 -6 -5 -5 -5 -5 -5 -4 -4 -4 -4 -4 -4 -3 -3 ------- Run | Yrd Mat Min Exi Min Mat Gar Mat Fac Low Zio Pro Fac Low Low Dat Pro Fac Upp Upp Zhi Pro Fac Ext Cet Arc Hub Res Qua Maximum Alert Level 4 | . . . . . 2 3 3 3 . . . 1 . . . . 1 . . . . . 3 2 2 4 4 3 Low Security (%) 34 | 100 100 100 . 100 56 8 . . . . . 84 . . . . 82 . . . . 100 59 . 14 28 . . Level 1 22 | . . . . . 38 18 10 53 . . . 15 . . . . 17 . . . . . 18 24 71 12 11 . Level 2 25 | . . . . . 5 47 78 21 . . . . . . . . . . . . . . 7 75 14 8 43 35 Level 3 12 | . . . . . . 24 10 24 . . . . . . . . . . . . . . 15 . . 49 13 64 Level 4 5 | . . . . . . . . . . . . . . . . . . . . . . . . . . 1 30 . Level 5 . | . . . . . . . . . . . . . . . . . . . . . . . . . . . . . High Security . | . . . . . . . . . . . . . . . . . . . . . . . . . . . . . Max Security . | . . . . . . . . . . . . . . . . . . . . . . . . . . . . . Peak Influence 1508 | 10 188 50 . 82 545 968 796 1011 . . . 300 . . . . 231 . . . . 110 805 494 422 1105 1508 864 Initial 848 | . . 22 . . 28 111 471 356 . . . 300 . . . . 150 . . . . 11 24 444 170 58 575 848 Average 406 | 1 51 5 . 5 183 582 516 507 . . . 95 . . . . 131 . . . . 41 246 426 300 612 809 732 Influence Increases 13803 | 20 504 50 . 110 1133 877 963 1457 260 . 487 673 150 . . 12 483 135 49 . 298 490 1537 344 338 1332 1791 310 Destroy 0b10 Robot/C 6900 | . 160 40 . 100 700 500 580 740 220 . 360 160 120 . . . 180 100 20 . 260 140 780 160 80 460 920 120 Destroy 0b10 Robot/NC 750 | 20 50 . . . 65 . 60 65 10 . 15 30 15 . . 10 20 . . . . 60 80 10 45 110 45 40 Destroy Leader 1266 | . 48 10 . 10 190 10 160 186 30 . 40 54 . . . . 40 20 10 . 20 46 84 . . 96 202 10 Allied During Kill 1093 | . . . . . . 41 . . . . 12 . . . . 2 47 . 4 . 18 . 384 160 117 308 . . Trap Triggered on 0b10 20 | . 10 . . . . . . 10 . . . . . . . . . . . . . . . . . . . . Successful Hack 271 | . 27 . . . 29 . 44 55 . . . 21 . . . . . . . . . . 17 . . . 62 16 Select Force Hacks 60 | . 60 . . . . . . . . . . . . . . . . . . . . . . . . . . . Disable Machine 780 | . 105 . . . 30 15 60 45 . . . 75 . . . . . . . . . 135 45 . 60 30 165 15 Anti-Garrison Action 550 | . . . . . . 200 . 200 . . . . . . . . . . . . . . . . . 150 . . Destroy Structure 1048 | . 29 . . . 44 96 14 36 . . . 33 . . . . 46 . . . . 94 102 14 36 118 292 94 Advance Influence 450 | . . . . . . . . . . . . 300 . . . . 150 . . . . . . . . . . . Partial Spotted 15 | . . . . . . . . . . . . . . . . . . . . . . 15 . . . . . . Lose Combat Pursuer 600 | . 15 . . . 75 15 45 120 . . 60 . 15 . . . . 15 15 . . . 45 . . 60 105 15 Influence Decreases 13187 | 20 447 107 . 36 1035 81 1147 1243 718 540 487 673 129 21 . 12 272 286 109 . 279 458 795 711 598 402 1379 1202 Entered New Map 4002 | . . 35 . . 46 61 497 428 370 540 . . . 5 . . . 79 12 . . 8 27 349 256 108 521 660 Time Decay 7486 | 20 427 72 . 36 649 . 650 745 318 . 427 482 89 16 . 12 262 187 97 . 239 362 548 222 342 214 768 302 Lost Part 780 | . 20 . . . 40 . . 50 30 . 40 140 40 . . . 10 20 . . . 10 30 . . 20 90 240 Lost Ally 520 | . . . . . . 20 . 20 . . 20 20 . . . . . . . . 40 10 190 140 . 60 . . Purge Threat 399 | . . . . . 300 . . . . . . 31 . . . . . . . . . 68 . . . . . . Squads Dispatched 62 | . 3 . . . 5 . 4 12 . . 1 3 . . . . 2 . 1 . . 4 4 . . 10 7 6 Investigation 8 | . 2 . . . 1 . . 2 . . . . . . . . . . . . . . 1 . . . 2 . Extermination 14 | . . . . . . . . 7 . . . 2 . . . . 1 . . . . 2 . . . 1 . 1 Reinforcement 29 | . 1 . . . 3 . 4 2 . . . 1 . . . . 1 . . . . 2 3 . . 5 5 2 Assault 10 | . . . . . . . . 1 . . 1 . . . . . . . 1 . . . . . . 4 . 3 Garrison 1 | . . . . . 1 . . . . . . . . . . . . . . . . . . . . . . . Intercept . | . . . . . . . . . . . . . . . . . . . . . . . . . . . . . Searches Triggered . | . . . . . . . . . . . . . . . . . . . . . . . . . . . . . Data Miner Redirects 1 | . . . . . . . . . . . . . . . . . . . . . . . . . . . . 1 Construction Impeded 5 | . . . . . 1 . . 1 . . . 1 . . . . . . . . . . 1 . . 1 . . Haulers Reinforced 6 | . . . . . . . . 1 . . . . . . . . . . . . . 1 . . . 1 3 . Active Scanning Responses . | . . . . . . . . . . . . . . . . . . . . . . . . . . . . . Cargo Convoy Interrupts . | . . . . . . . . . . . . . . . . . . . . . . . . . . . . . Stealth | -11 -10 -10 -10 -9 -8 -8 -8 -7 -7 -7 -6 -6 -6 -6 -6 -5 -5 -5 -5 -5 -4 -4 -4 -4 -4 -4 -3 -3 --------- Run | Yrd Mat Min Exi Min Mat Gar Mat Fac Low Zio Pro Fac Low Low Dat Pro Fac Upp Upp Zhi Pro Fac Ext Cet Arc Hub Res Qua Distress Signals 26 | . . . . 1 4 . 4 1 . . . 1 . . . . . . . . . . 2 2 . 4 7 . Communications Jammed 53 | . . . . . . . . . . . . . . . . . . . . . . 29 4 . . . . 20 Distress Signals 53 | . . . . . . . . . . . . . . . . . . . . . . 29 4 . . . . 20 Times Spotted 534 | . 18 2 . 6 63 26 45 51 11 . 26 13 8 . . 2 11 7 15 . 11 18 38 10 10 35 82 26 Peak Tracking Total 13 | . 2 2 . 4 7 6 4 5 6 . 7 4 5 . . 1 4 4 9 . 4 3 4 5 1 6 5 13 Tactical Retreats 34 | . 1 . . . 3 1 3 4 . . 4 . 1 . . . . 1 1 . . . 1 . . 4 8 2 ECM-based Alert Blocks 6 | . . . . . . . . . . . . . . . . . . . . . . . . . . . 5 1 Traps | -11 -10 -10 -10 -9 -8 -8 -8 -7 -7 -7 -6 -6 -6 -6 -6 -5 -5 -5 -5 -5 -4 -4 -4 -4 -4 -4 -3 -3 ------- Run | Yrd Mat Min Exi Min Mat Gar Mat Fac Low Zio Pro Fac Low Low Dat Pro Fac Upp Upp Zhi Pro Fac Ext Cet Arc Hub Res Qua Traps Triggered 9 | . 5 . . . . . . 1 . . . . 1 . . . . . . . . 2 . . . . . . Indirectly 1 | . . . . . . . . . . . . . . . . . . . . . . 1 . . . . . . Trap Hack Attempts 55 | . 46 . . . . . 9 . . . . . . . . . . . . . . . . . . . . . Triggered . | . . . . . . . . . . . . . . . . . . . . . . . . . . . . . Disarmed 2 | . 1 . . . . . 1 . . . . . . . . . . . . . . . . . . . . . Reprogrammed 10 | . 5 . . . . . . 5 . . . . . . . . . . . . . . . . . . . . Reused 2 | . 1 . . . . . . 1 . . . . . . . . . . . . . . . . . . . . Traps Extracted . | . . . . . . . . . . . . . . . . . . . . . . . . . . . . . Installed . | . . . . . . . . . . . . . . . . . . . . . . . . . . . . . Triggered 2 | . 1 . . . . . . 1 . . . . . . . . . . . . . . . . . . . . Machines | -11 -10 -10 -10 -9 -8 -8 -8 -7 -7 -7 -6 -6 -6 -6 -6 -5 -5 -5 -5 -5 -4 -4 -4 -4 -4 -4 -3 -3 ---------- Run | Yrd Mat Min Exi Min Mat Gar Mat Fac Low Zio Pro Fac Low Low Dat Pro Fac Upp Upp Zhi Pro Fac Ext Cet Arc Hub Res Qua Machines Disabled 58 | . 8 . . . 2 2 4 3 . . . 5 . . . . . . 2 . . 9 3 . 4 3 11 2 Max in Single Turn 7 | . 7 . . . 1 1 1 1 . . . 4 . . . . . . 1 . . 3 1 . 1 1 1 1 Garrison Access 3 | . . . . . . . . 1 . . . . . . . . . . . . . . . . . 1 1 . Garrison Relay 1 | . . . . . . 1 . . . . . . . . . . . . . . . . . . . . . . Machines Repaired . | . . . . . . . . . . . . . . . . . . . . . . . . . . . . . Machines Dismantled . | . . . . . . . . . . . . . . . . . . . . . . . . . . . . . Machines Sabotaged . | . . . . . . . . . . . . . . . . . . . . . . . . . . . . . Overloaded Fab Kills . | . . . . . . . . . . . . . . . . . . . . . . . . . . . . . Hacking | -11 -10 -10 -10 -9 -8 -8 -8 -7 -7 -7 -6 -6 -6 -6 -6 -5 -5 -5 -5 -5 -4 -4 -4 -4 -4 -4 -3 -3 --------- Run | Yrd Mat Min Exi Min Mat Gar Mat Fac Low Zio Pro Fac Low Low Dat Pro Fac Upp Upp Zhi Pro Fac Ext Cet Arc Hub Res Qua Machines Accessed 102 | . 10 . 1 1 12 2 11 17 . 1 . 6 2 . 4 . 3 . 2 6 . 3 5 . . 2 9 5 Terminals 40 | . 7 . . 1 7 2 6 8 . . . 4 . . . . . . . . . 1 2 . . 1 . 1 Fabricators 6 | . . . . . . . . 2 . . . . . . . . 1 . . . . 1 . . . . 2 . Repair Stations 10 | . 1 . . . 2 . 2 2 . . . . . . . . . . . . . 1 1 . . . . 1 Recycling Units 11 | . 2 . . . 1 . 1 1 . . . 1 . . . . 1 . . . . . 2 . . . 2 . Scanalyzers 12 | . . . . . 1 . 2 2 . . . 1 . . . . 1 . . . . . . . . . 3 2 Garrison Access 7 | . . . . . 1 . . 2 . . . . . . . . . . . . . . . . . 1 2 1 Total Hacks 290 | . 29 . 4 2 38 4 46 44 . 4 . 11 2 . 26 . 5 . 7 19 . 5 16 . . 2 19 7 Successful 184 | . 14 . 4 1 26 . 34 21 . 4 . 7 2 . 26 . . . 7 19 . 4 6 . . . 6 3 Failed 105 | . 15 . . 1 12 4 12 22 . . . 4 . . . . 5 . . . . 1 10 . . 2 13 4 Catastrophic 25 | . . . . 1 1 1 2 6 . . . 3 . . . . 2 . . . . 1 2 . . 2 1 3 Database Lockouts 1 | . . . . . . . . 1 . . . . . . . . . . . . . . . . . . . . Manual 95 | . 20 . . . 22 . 14 11 . 7 . 4 . . . . 3 . . . . 1 4 1 . 1 6 1 Terminals 108 | . 23 . . 2 25 4 18 22 . . . 6 . . . . . . . . . 2 4 . . 1 . 1 Fabricators 13 | . . . . . . . . 6 . . . . . . . . 2 . . . . 1 . . . . 4 . Repair Stations 29 | . 2 . . . 6 . 6 7 . . . . . . . . . . . . . 2 5 . . . . 1 Recycling Units 27 | . 4 . . . 1 . 3 2 . . . 3 . . . . 1 . . . . . 7 . . . 6 . Scanalyzers 42 | . . . . . 4 . 19 5 . . . 2 . . . . 2 . . . . . . . . . 7 3 Garrison Access 9 | . . . . . 2 . . 2 . . . . . . . . . . . . . . . . . 1 2 2 Terminal Hacks 97 | . 9 . 4 1 8 . 3 8 . 4 . 3 2 . 26 . . . 7 19 . 1 1 . . . . 1 Record 30 | . . . 4 . . . . . . . . 1 . . 11 . . . 6 7 . . . . . . . 1 Part Schematic 16 | . . . . . . . . . . 4 . . . . 8 . . . . 4 . . . . . . . . Robot Schematic 4 | . . . . . . . . . . . . . . . 4 . . . . . . . . . . . . . Robot Analysis 9 | . 4 . . . . . . 1 . . . . . . . . . . . 4 . . . . . . . . Prototype ID Bank 12 | . 2 . . . 1 . . 2 . . . . . . 3 . . . . 4 . . . . . . . . Open Door 3 | . . . . . . . . . . . . . 2 . . . . . 1 . . . . . . . . . Open DSF 1 | . . . . . . . . 1 . . . . . . . . . . . . . . . . . . . . Branch Access Points 3 | . . . . . . . 1 1 . . . 1 . . . . . . . . . . . . . . . . Terminal Index 3 | . 1 . . . 1 . 1 . . . . . . . . . . . . . . . . . . . . . Alert Level 1 | . . . . . . . . 1 . . . . . . . . . . . . . . . . . . . . Unreport Threat 4 | . . . . . 2 . . . . . . 1 . . . . . . . . . 1 . . . . . . Locate Traps 6 | . 1 . . . 2 . 1 1 . . . . . . . . . . . . . . 1 . . . . . Reprogram Traps 1 | . . . . . . . . 1 . . . . . . . . . . . . . . . . . . . . Dispatch Records 1 | . . . . 1 . . . . . . . . . . . . . . . . . . . . . . . . Transport Status 1 | . 1 . . . . . . . . . . . . . . . . . . . . . . . . . . . Hauler Manifests 2 | . . . . . 2 . . . . . . . . . . . . . . . . . . . . . . . Fabricator Hacks 5 | . . . . . . . . 3 . . . . . . . . . . . . . 1 . . . . 1 . Network Status 1 | . . . . . . . . 1 . . . . . . . . . . . . . . . . . . . . Load Schematic 2 | . . . . . . . . 2 . . . . . . . . . . . . . . . . . . . . Build 2 | . . . . . . . . . . . . . . . . . . . . . . 1 . . . . 1 . Repair Station Hacks 24 | . 1 . . . 6 . 6 4 . . . . . . . . . . . . . 2 5 . . . . . Scan Component 13 | . 1 . . . 3 . 3 2 . . . . . . . . . . . . . 1 3 . . . . . Repair 11 | . . . . . 3 . 3 2 . . . . . . . . . . . . . 1 2 . . . . . Recycling Unit Hacks 4 | . . . . . 1 . 1 . . . . 1 . . . . . . . . . . . . . . 1 . Retrieve Matter 1 | . . . . . . . 1 . . . . . . . . . . . . . . . . . . . . . Retrieve Components 3 | . . . . . 1 . . . . . . 1 . . . . . . . . . . . . . . 1 . Scanalyzer 27 | . . . . . 2 . 18 3 . . . 1 . . . . . . . . . . . . . . 2 1 Insert Component 7 | . . . . . . . 6 1 . . . . . . . . . . . . . . . . . . . . Analyze 6 | . . . . . . . 5 1 . . . . . . . . . . . . . . . . . . . . Retrieve Study 14 | . . . . . 2 . 7 1 . . . 1 . . . . . . . . . . . . . . 2 1 Garrison Access Hacks 2 | . . . . . 1 . . . . . . . . . . . . . . . . . . . . . . 1 Unlock Access 1 | . . . . . 1 . . . . . . . . . . . . . . . . . . . . . . . Coupler Status 1 | . . . . . . . . . . . . . . . . . . . . . . . . . . . . 1 Unauthorized Hacks 25 | . 4 . . . 8 . 6 3 . . . 2 . . . . . . . . . . . . . . 2 . Terminals 17 | . 2 . . . 8 . 6 1 . . . . . . . . . . . . . . . . . . . . Assimilate 3 | . . . . . . . 3 . . . . . . . . . . . . . . . . . . . . . Botnet 5 | . 1 . . . 2 . 1 1 . . . . . . . . . . . . . . . . . . . . Operators 2 | . 1 . . . . . 1 . . . . . . . . . . . . . . . . . . . . . Skim 7 | . . . . . 6 . 1 . . . . . . . . . . . . . . . . . . . . . Fabricators 1 | . . . . . . . . 1 . . . . . . . . . . . . . . . . . . . . Haulers 1 | . . . . . . . . 1 . . . . . . . . . . . . . . . . . . . . Repair Stations . | . . . . . . . . . . . . . . . . . . . . . . . . . . . . . Recycling Units 5 | . 2 . . . . . . . . . . 2 . . . . . . . . . . . . . . 1 . Recyclers 2 | . . . . . . . . . . . . 1 . . . . . . . . . . . . . . 1 . Mask 1 | . . . . . . . . . . . . 1 . . . . . . . . . . . . . . . . Tunnel 2 | . 2 . . . . . . . . . . . . . . . . . . . . . . . . . . . Scanalyzers . | . . . . . . . . . . . . . . . . . . . . . . . . . . . . . Garrison Access 2 | . . . . . . . . 1 . . . . . . . . . . . . . . . . . . 1 . Reprogram 1 | . . . . . . . . . . . . . . . . . . . . . . . . . . . 1 . Jam 1 | . . . . . . . . 1 . . . . . . . . . . . . . . . . . . . . Data Cores Recovered 2 | . . . . . . . . . . . . . . . . . . . . . . . 1 . . 1 . . Used 1 | . . . . . . . . . . . . . . . . . . . . . . . . . . 1 . . Hacking Detections 77 | . 8 . . 1 10 2 11 16 . . . 5 . . . . 3 . . . . 2 5 . . 2 8 4 Full Trace Events 3 | . . . . . 1 1 . 1 . . . . . . . . . . . . . . . . . . . . Feedback Events . | . . . . . . . . . . . . . . . . . . . . . . . . . . . . . Feedback Blocked . | . . . . . . . . . . . . . . . . . . . . . . . . . . . . . Robot Schematics Acquired 8 | . . . . . . . . . . 3 . . . . 4 . . . . . . . . . . . . 1 Robots Built . | . . . . . . . . . . . . . . . . . . . . . . . . . . . . . Authchips . | . . . . . . . . . . . . . . . . . . . . . . . . . . . . . Time . | . . . . . . . . . . . . . . . . . . . . . . . . . . . . . Total Robot Build Rating . | . . . . . . . . . . . . . . . . . . . . . . . . . . . . . Part Schematics Acquired 39 | . . . . . . . 5 1 . 20 . . . . 8 . . . . 4 . . . . . . . 1 Parts Built 3 | . . . . . . . . . . . . . . . . . . . . . . 2 . . . . 1 . Authchips . | . . . . . . . . . . . . . . . . . . . . . . . . . . . . . Time 208 | . . . . . . . . . . . . . . . . . . . . . . 139 . . . . 69 . Total Part Build Rating 27 | . . . . . . . . . . . . . . . . . . . . . . 18 . . . . 9 . Part Studies Acquired 14 | . . . . . 2 . 7 1 . . . 1 . . . . . . . . . . . . . . 2 1 Parts Repaired 11 | . . . . . 3 . 3 2 . . . . . . . . . . . . . 1 2 . . . . . Time 502 | . . . . . 120 . 132 88 . . . . . . . . . . . . . 44 118 . . . . . Parts Recycled . | . . . . . . . . . . . . . . . . . . . . . . . . . . . . . Recycled Matter . | . . . . . . . . . . . . . . . . . . . . . . . . . . . . . Retrieved Matter . | . . . . . . . . . . . . . . . . . . . . . . . . . . . . . Retrieved Components 20 | . . . . . 4 . . . . . . 6 . . . . . . . . . . . . . . 10 . Parts Scanalyzed 6 | . . . . . . . 5 1 . . . . . . . . . . . . . . . . . . . . Part Schematics Acquired 6 | . . . . . . . 5 1 . . . . . . . . . . . . . . . . . . . . Parts Damaged . | . . . . . . . . . . . . . . . . . . . . . . . . . . . . . Bothacking | -11 -10 -10 -10 -9 -8 -8 -8 -7 -7 -7 -6 -6 -6 -6 -6 -5 -5 -5 -5 -5 -4 -4 -4 -4 -4 -4 -3 -3 ------------ Run | Yrd Mat Min Exi Min Mat Gar Mat Fac Low Zio Pro Fac Low Low Dat Pro Fac Upp Upp Zhi Pro Fac Ext Cet Arc Hub Res Qua Used RIF Installer . | . . . . . . . . . . . . . . . . . . . . . . . . . . . . . Robots Hacked 6 | . . . 5 . . . . . . . . . . . . . . . . . . . . . . . 1 . Non-combat 4 | . . . 3 . . . . . . . . . . . . . . . . . . . . . . . 1 . Combat 2 | . . . 2 . . . . . . . . . . . . . . . . . . . . . . . . . Robot Hacks Applied 6 | . . . 5 . . . . . . . . . . . . . . . . . . . . . . . 1 . parse_system 5 | . . . 5 . . . . . . . . . . . . . . . . . . . . . . . . . check_alert 1 | . . . . . . . . . . . . . . . . . . . . . . . . . . . 1 . Relay Couplers Released 14 | . . . . . . 3 . 3 . . . . . . . . 4 . . . . . . . . 2 2 . Machine Destruction 7 | . . . . . . 3 . . . . . . . . . . . . . . . . . . . 2 2 . Programmers 7 | . . . . . . . . 3 . . . . . . . . 4 . . . . . . . . . . . Fabnet Peak Effective % . | . . . . . . . . . . . . . . . . . . . . . . . . . . . . . Robots Rewired 17 | . . . . . . 3 . . . . 2 . . . . . . . 2 . . . 10 . . . . . Allies Hacked . | . . . . . . . . . . . . . . . . . . . . . . . . . . . . . Hacks Repelled . | . . . . . . . . . . . . . . . . . . . . . . . . . . . . . Allies | -11 -10 -10 -10 -9 -8 -8 -8 -7 -7 -7 -6 -6 -6 -6 -6 -5 -5 -5 -5 -5 -4 -4 -4 -4 -4 -4 -3 -3 -------- Run | Yrd Mat Min Exi Min Mat Gar Mat Fac Low Zio Pro Fac Low Low Dat Pro Fac Upp Upp Zhi Pro Fac Ext Cet Arc Hub Res Qua Total Allies 41 | . . 2 . . . 3 2 . . . 2 . . . . 1 1 . 2 . . 1 22 5 . . . . Largest Group 12 | . . 2 . . . 3 2 2 . . 2 1 . . . 1 2 1 2 2 2 1 12 12 10 5 . . Highest-Rated Group 909 | . . 45 . . . 87 36 36 . . 58 29 . . . 96 106 96 60 60 57 26 647 909 762 435 . . Highest-Rated Ally 159 | . . 31 . . . 31 26 26 . . 29 29 . . . 96 96 96 30 30 30 26 159 159 159 96 . . Initial Warlord ECA Mod 3 | . . . . . . . 3 2 2 2 1 1 1 1 1 . . . . . . . . . . . . . Total Orders 35 | . . . . . . . 4 3 . . . 5 . . . . 4 . . . . 8 4 2 4 . . 1 STAY 8 | . . . . . . . 2 2 . . . 1 . . . . 1 . . . . 2 . . . . . . ROAM 3 | . . . . . . . . . . . . 2 . . . . . . . . . . . . 1 . . . FOLLOW 9 | . . . . . . . 2 1 . . . . . . . . 1 . . . . 1 . 1 3 . . . RETURN 15 | . . . . . . . . . . . . 2 . . . . 2 . . . . 5 4 1 . . . 1 Ally Attacks 270 | . . . . . . 30 . . . . 20 4 . . . . 11 1 . . . . 70 60 19 55 . . Total Damage 8209 | . . . . . . 483 . . . . 304 42 . . . . 331 . . . . . 2156 1809 992 2092 . . Kills 59 | . . . . . . 8 . . . . 3 . . . . . 3 . . . . . 16 8 4 17 . . Allies Corrupted 1 | . . . . . . . . . . . . . . . . . . . . . . . . . . 1 . . Allies Melted . | . . . . . . . . . . . . . . . . . . . . . . . . . . . . . Intel | -11 -10 -10 -10 -9 -8 -8 -8 -7 -7 -7 -6 -6 -6 -6 -6 -5 -5 -5 -5 -5 -4 -4 -4 -4 -4 -4 -3 -3 ------- Run | Yrd Mat Min Exi Min Mat Gar Mat Fac Low Zio Pro Fac Low Low Dat Pro Fac Upp Upp Zhi Pro Fac Ext Cet Arc Hub Res Qua Active Infowar (turns) 29497 | 27 1423 572 398 335 305 1093 1577 3377 714 2402 821 1007 966 932 146 437 474 968 742 283 772 1186 1864 465 774 449 4356 632 Optics 12357 | . . . . . . . . . . . . . . . . . . 849 742 283 757 1186 1864 465 774 449 4356 632 Sensors 9964 | . . . . . . . . . . . . . . . . . 441 957 742 283 758 1186 1864 465 774 331 1630 533 Terrain 5756 | . . . . . . . . . . . . . . 839 146 437 414 655 583 245 753 361 . . . 128 1195 . Structural 6686 | . . . . . . . 160 1283 593 2230 807 682 839 92 . . . . . . . . . . . . . . Seismic 15145 | 27 1423 572 398 335 301 1093 1417 3365 714 2402 14 664 958 886 143 433 . . . . . . . . . . . . Jamming 7399 | . . . . . . . . . . . . . . . . . 254 268 330 247 735 1186 228 . . . 3536 615 ECM 310 | . . . . . 4 . . . . . . . . . . . . . . . . . . . . . 224 82 Robot Analysis Total 9 | . 4 . . . . . . 1 . . . . . . . . . . . 4 . . . . . . . . Derelict Logs Recovered 11 | . . 1 . . . . . . 1 1 2 . 2 . . 1 . 1 1 . 1 . . . . . . . Drone Launches 15 | . . . . . . . . . . . . 2 . . . . 2 . . . . 5 4 1 . . . 1 Drone Recoveries 15 | . . . . . . . . . . . . 2 . . . . 2 . . . . 5 4 1 . . . 1 Exploration | -11 -10 -10 -10 -9 -8 -8 -8 -7 -7 -7 -6 -6 -6 -6 -6 -5 -5 -5 -5 -5 -4 -4 -4 -4 -4 -4 -3 -3 ------------- Run | Yrd Mat Min Exi Min Mat Gar Mat Fac Low Zio Pro Fac Low Low Dat Pro Fac Upp Upp Zhi Pro Fac Ext Cet Arc Hub Res Qua Turns Passed 34903 | 113 1672 590 398 467 2536 1591 2382 3884 714 2402 1182 1304 1069 934 146 437 562 968 742 283 772 1186 1864 465 774 449 4356 661 Spaces Moved 19790 | 50 878 550 364 219 1235 762 1058 1660 274 1203 486 694 875 660 127 361 337 728 553 219 458 661 966 295 475 255 3023 364 Core 64 | 4 2 . . . . . . . . . . 6 . . . . . . . . . . . . . . . 52 Treads 5927 | 46 340 . . . 450 762 1058 1178 274 1203 486 130 . . . . . . . . . . . . . . . . Legs 5996 | . . . . . 707 . . . . . . . . . . . . . . . . . 931 295 475 255 3023 310 Wheels 7803 | . 536 550 364 219 78 . . 482 . . . 558 875 660 127 361 337 728 553 219 458 661 35 . . . . 2 Hover . | . . . . . . . . . . . . . . . . . . . . . . . . . . . . . Flight . | . . . . . . . . . . . . . . . . . . . . . . . . . . . . . Fastest Speed 50 | 50 80 95 95 105 105 160 158 130 210 162 200 70 105 105 105 105 105 105 115 115 115 115 115 120 120 120 109 50 Average Speed 134 | 151 119 95 104 105 138 160 160 183 212 198 207 144 105 105 105 105 105 114 115 115 115 126 119 120 120 120 113 103 Slowest Speed 1750 | 160 250 95 105 105 190 160 162 360 285 210 210 1750 105 105 105 105 105 115 115 115 115 160 160 120 120 120 190 280 Overloaded Moves . | . . . . . . . . . . . . . . . . . . . . . . . . . . . . . Propulsion Burnouts . | . . . . . . . . . . . . . . . . . . . . . . . . . . . . . Robots Hopped . | . . . . . . . . . . . . . . . . . . . . . . . . . . . . . Potential Cave-ins 2 | . . . . . . . . . . . . . . . . . . 2 . . . . . . . . . . Cave-ins Triggered 1 | . . . . . . . . . . . . . . . . . . 1 . . . . . . . . . . Teleports 1 | . . . . . . . . . . . . . . . . . . . . . . . . . . . 1 . Exploration Rate (%) 60 | 4 95 99 66 30 75 87 63 42 36 85 63 17 86 69 74 57 11 81 64 63 68 16 87 81 99 32 58 35 Regions Visited 28 Branch Regions 19 Pre-discovered Areas 15 | . 2 2 1 . 2 . . . 1 3 . . . . 1 . . . . 3 . . . . . . . . Known Exits Taken 11 | . . . . . 1 . 1 1 . . 1 1 . . . . 1 1 . . 1 1 . . . 1 1 . Unknown Exits Taken 16 | 1 1 1 1 1 . . . . 1 1 . . 1 1 1 1 . . 1 1 . . 1 1 1 . . . Scrap Searched 27 | . . 1 . . . . . . 1 4 3 . 5 8 . 2 . 1 1 . 1 . . . . . . . Spaces Dug 246 | . 5 . . . 10 56 7 15 7 . 2 14 7 18 . 30 12 13 9 . 10 6 1 . . . 16 8 Terrain Destroyed 1026 | . 32 . . . 32 84 12 32 28 . 44 34 14 33 . 34 17 89 18 . 67 61 63 4 7 41 206 74 Melee 110 | . . . . . 1 46 7 15 7 . 2 8 . 9 . . . . . . 3 . . . . . 6 6 Projectile 378 | . 11 . . . 31 7 4 4 6 . 2 13 14 24 . 8 17 37 18 . 14 26 53 4 7 21 46 11 AOE 537 | . 21 . . . . 31 . 13 15 . 40 13 . . . 26 . 52 . . 50 35 10 . . 20 154 57 Terrain Rammed . | . . . . . . . . . . . . . . . . . . . . . . . . . . . . . Walls Destroyed . | . . . . . . . . . . . . . . . . . . . . . . . . . . . . . Machines Disabled . | . . . . . . . . . . . . . . . . . . . . . . . . . . . . . Actions | -11 -10 -10 -10 -9 -8 -8 -8 -7 -7 -7 -6 -6 -6 -6 -6 -5 -5 -5 -5 -5 -4 -4 -4 -4 -4 -4 -3 -3 --------- Run | Yrd Mat Min Exi Min Mat Gar Mat Fac Low Zio Pro Fac Low Low Dat Pro Fac Upp Upp Zhi Pro Fac Ext Cet Arc Hub Res Qua Total 25415 | 68 1343 608 378 433 1812 933 1537 2195 335 1217 568 886 972 853 138 404 488 823 635 251 645 913 1472 365 625 311 3643 564 Wait 2774 | . 299 45 . 197 291 23 272 274 11 . 5 21 19 139 2 26 59 34 23 . 134 153 244 40 116 . 241 106 Move 19761 | 49 877 549 363 218 1234 761 1057 1659 273 1202 485 693 874 659 126 360 336 726 552 218 457 660 965 294 474 254 3022 364 Hop . | . . . . . . . . . . . . . . . . . . . . . . . . . . . . . Pick Up 249 | 4 15 3 2 2 36 4 22 19 1 3 5 37 10 3 . . 9 2 1 4 1 9 13 2 . 1 36 5 Fast Attach 132 | 6 11 . . . 15 . 4 11 . 1 2 16 1 1 4 . 3 . . 13 . 6 9 1 3 2 18 5 Attach 87 | . 1 . 1 . 10 . 1 8 4 2 2 7 7 . . . 3 3 . . 1 2 6 1 . 2 12 14 Detach 27 | . . . 1 . 2 . 1 1 . 3 . 1 4 1 . . . 1 . 1 . . 2 . . . 6 3 Swap 542 | 1 16 4 3 3 38 30 45 73 16 3 14 25 18 8 2 8 29 13 3 . 16 21 36 5 4 7 87 14 Drop 326 | . 9 3 2 2 52 9 33 24 . 2 3 24 6 4 4 . 13 2 1 15 1 16 23 2 4 5 60 7 Fire 1122 | 8 68 4 . 11 133 38 81 103 21 . 38 39 25 25 . 10 35 41 26 . 28 40 100 20 16 37 143 32 Melee 211 | . . . 6 . 1 66 8 22 9 1 2 22 8 13 . . 1 . . . 7 6 1 . 8 . 18 12 Ram 4 | . 1 . . . . . . . . . . 1 . . . . . . . . . . . . . . . 2 Kick 4 | . . . . . . . . . . . . . . . . . . . . . . . 1 . . 3 . . Crush 5 | . . . . . . . 4 1 . . . . . . . . . . . . . . . . . . . . Escape Stasis 1 | . . . . . . . . . . . . . . . . . . 1 . . . . . . . . . . Rewire 115 | . . . . . . 2 . . . . 12 . . . . . . . 29 . . . 72 . . . . . Trap 55 | . 46 . . . . . 9 . . . . . . . . . . . . . . . . . . . . . Miscellaneous . | . . . . . . . . . . . . . . . . . . . . . . . . . . . . . Route ------- -11/Scrapyard -10/Materials (discovered 5 exits: [*Mat x3] / [*Min x2]) -10/Mines (discovered 4 exits: [*Mat x2] / *Exi / [*Sub]) -10/Exiles (discovered 2 exits: *Min x2) -9/Mines -8/Materials (discovered 2 exits: *Fac / Gar) -8/Garrison (discovered 3 exits: *Mat x3) -8/Materials -7/Factory (discovered 4 exits: *Fac x2 / *Low x2) -7/Lower Caves -7/Zion -6/Proximity Caves -6/Factory (discovered 2 exits: *Low x2) -6/Lower Caves -6/Lower Caves -6/Data Miner -5/Proximity Caves -5/Factory (discovered 6 exits: Fac x4 / *Upp x2) -5/Upper Caves -5/Upper Caves (discovered 2 exits: *Fac / *Zhi) -5/Zhirov -4/Proximity Caves -4/Factory (discovered 6 exits: Res x4 / *Ext x2) -4/Extension (discovered 2 exits: *Res / *Cet) -4/Cetus (discovered 3 exits: *Res x2 / [*Arc]) -4/Archives (discovered 3 exits: *Res / *Hub x2) -4/Hub_04(d) -3/Research (discovered 2 exits: *Res / *Qua) -3/Quarantine History --------- Turn | Location | Event 13 | -11/Scrapyard | Discovered new exit (range 15) 114 | -11/Scrapyard | Entered Materials 306 | -10/Materials | Build established: Mutant 767 | -10/Materials | Discovered new exit (range 7) 893 | -10/Materials | Discovered new exit (range 7) 1004 | -10/Materials | Discovered new exit (range 16) 1433 | -10/Materials | Discovered new exit (range 7) 1474 | -10/Materials | Discovered new exit (range 16) 1786 | -10/Materials | Entered Mines 1895 | -10/Mines | Discovered new exit (range 6) 1920 | -10/Mines | Discovered new exit (range 7) 2152 | -10/Mines | Discovered new exit (range 12) 2253 | -10/Mines | Learned location of Storage (-9) 2371 | -10/Mines | Deemed a non-threat by the Exiles lab entrance 2372 | -10/Mines | Discovered new exit (range 5) 2376 | -10/Mines | Entered Exiles 2393 | -10/Exiles | Discovered new exit (range 15) 2403 | -10/Exiles | Met 8R-AWN 2428 | -10/Exiles | Met EX-HEX 2464 | -10/Exiles | Met EX-BIN 2502 | -10/Exiles | Met EX-DEC 2510 | -10/Exiles | Learned location of Zion (-7) 2635 | -10/Exiles | Discovered new exit (range 14) 2774 | -10/Exiles | Entered Mines 2896 | -9/Mines | Assembled infested the area 3196 | -9/Mines | Discovered new exit (range 5) 3209 | -9/Mines | Core integrity fell below 50% 3241 | -9/Mines | Entered Materials 3241 | -8/Materials | Evolved 4 slots: Propulsion x2, Utility x1, Weapon x1 3740 | -8/Materials | Garrison activated, responded to threat 3852 | -8/Materials | Build established: Scavenger-Tank 4189 | -8/Materials | Identified exit to Garrison 4466 | -8/Materials | Repaired Reactive Plating 4511 | -8/Materials | Repaired Gauss Rifle+ 5161 | -8/Materials | Repaired Minigun 5324 | -8/Materials | Discovered new exit (range 14) 5419 | -8/Materials | Learned Factory emergency access door positions 5535 | -8/Materials | Learned location of 1 exit from Extension 5609 | -8/Materials | Learned 4 Factory zone layouts 5631 | -8/Materials | Learned Recycling recycling unit intel 5690 | -8/Materials | Learned location of 1 exit from Recycling 5731 | -8/Materials | Learned 2 Lower Caves zone layouts 5777 | -8/Materials | Entered Garrison 5953 | -8/Garrison | Triggered checkpoint 6171 | -8/Garrison | Triggered checkpoint 6175 | -8/Garrison | Triggered checkpoint 6203 | -8/Garrison | Triggered checkpoint 6350 | -8/Garrison | Discovered new exit (range 11) 6583 | -8/Garrison | Discovered new exit (range 10) 6738 | -8/Garrison | Build established: Scavenger-Mutant 6943 | -8/Garrison | Discovered new exit (range 10) 7014 | -8/Garrison | Triggered checkpoint 7368 | -8/Garrison | Entered Materials 7754 | -8/Materials | Build established: Scavenger-Tank 7870 | -8/Materials | Core integrity fell below 50% 8079 | -8/Materials | Repaired Gauss Rifle+ 8124 | -8/Materials | Repaired Kinecellerator 8514 | -8/Materials | Discovered new exit (range 8) 8677 | -8/Materials | Repaired Gauss Rifle+ 8809 | -8/Materials | Identified exit to Factory 9750 | -8/Materials | Entered Factory 9750 | -7/Factory | Accompanied by 2 allies 9750 | -7/Factory | Evolved 2 slots: Propulsion x1, Utility x1 9751 | -7/Factory | Identified exit to Factory 9758 | -7/Factory | Identified exit to DSF 10916 | -7/Factory | Central database locked down 11119 | -7/Factory | Repaired Gauss Rifle+ 11164 | -7/Factory | Repaired Gauss Rifle+ 11299 | -7/Factory | Build established: Mutant 11347 | -7/Factory | Discovered exit to Factory (range 5) 12011 | -7/Factory | Found Prototype Launcher 12011 | -7/Factory | Identified Rocket Array 12142 | -7/Factory | Build established: Tank 12150 | -7/Factory | First assault squad dispatched 12581 | -7/Factory | Identified exit to Lower Caves 13455 | -7/Factory | Watched by a mysterious "MATRIX" hacker. 13634 | -7/Factory | Entered Lower Caves 13806 | -7/Lower Caves | Met a Warlord Commander 13807 | -7/Lower Caves | Learned location of Warlord (-4) 13808 | -7/Lower Caves | Warlord Commander delivered Encrypted Comm Array 13815 | -7/Lower Caves | Found Encrypted Comm Array 13822 | -7/Lower Caves | Destroyed 7 combat bots 13824 | -7/Lower Caves | Lost 3 parts (3n) 14067 | -7/Lower Caves | Learned Factory garrison access intel 14101 | -7/Lower Caves | Encountered a Warlord checkpoint 14189 | -7/Lower Caves | A Derelict revealed a hidden shortcut to a safe place 14228 | -7/Lower Caves | Build established: Scavenger-Mutant 14348 | -7/Lower Caves | Entered Zion 14375 | -7/Zion | Given the Hacking Drone Bay 14417 | -7/Zion | Received a hallucinogenic algorithm 14419 | -7/Zion | Ran a hallucination algorithm 14445 | -7/Zion | System corruption cleaned by Quarantine Array 14471 | -7/Zion | Learned location of Quarantine (-3) 14620 | -7/Zion | Discovered new exit (range 15) 14651 | -7/Zion | Found Prototype Device 14905 | -7/Zion | Acquired unknown access codes intercepted by a Zionite 15552 | -7/Zion | Found CR-A16's Pointy Stick 16502 | -7/Zion | Ran a hallucination algorithm 16666 | -7/Zion | Ran a hallucination algorithm 16750 | -7/Zion | Entered Proximity Caves 16752 | -6/Proximity Caves | Spotter reported a threat 16753 | -6/Proximity Caves | Spotter reported a threat 16760 | -6/Proximity Caves | Core integrity fell below 50% 16802 | -6/Proximity Caves | Identified Hacking Drone Bay 16862 | -6/Proximity Caves | Build established: Scavenger-Tank 16943 | -6/Proximity Caves | Learned Factory security intel 17010 | -6/Proximity Caves | Attracted the attention of an 0b10 outpost 17912 | -6/Proximity Caves | Discovered exit to Factory (range 11) 17932 | -6/Proximity Caves | Entered Factory 17932 | -6/Factory | Accompanied by 1 ally 17932 | -6/Factory | Evolved 2 slots: Power x1, Weapon x1 17934 | -6/Factory | Loaded intel: 4 garrison access locations 18063 | -6/Factory | Spotted B-75 Beast 18186 | -6/Factory | Core integrity fell below 50% 18200 | -6/Factory | Revealed the true nature of CR-A16's Pointy Stick 18200 | -6/Factory | Destroyed B-75 Beast 18203 | -6/Factory | Lost 10 parts (2p3n3u2w) 18573 | -6/Factory | Identified exit to Lower Caves 19206 | -6/Factory | Build established: Scavenger-Gunner 19236 | -6/Factory | Entered Lower Caves 19356 | -6/Lower Caves | Found Prototype Device 19356 | -6/Lower Caves | Identified Heart of Steel 19429 | -6/Lower Caves | Learned Factory garrison access intel 19481 | -6/Lower Caves | Spotted B-75 Beast 19496 | -6/Lower Caves | Encountered a Warlord checkpoint 19518 | -6/Lower Caves | Build established: Scavenger-Tank 20090 | -6/Lower Caves | Learned Factory terminal intel 20122 | -6/Lower Caves | Attracted the attention of an 0b10 checkpoint 20186 | -6/Lower Caves | Lost 4 parts (1u3w) 20205 | -6/Lower Caves | Discovered new exit (range 14) 20305 | -6/Lower Caves | Entered another Lower Caves area 21142 | -6/Lower Caves | Encountered a Warlord checkpoint 21221 | -6/Lower Caves | Discovered new exit (range 16) 21239 | -6/Lower Caves | Entered Data Miner 21242 | -6/Data Miner | Discovered new exit (range 6) 21261 | -6/Data Miner | Met Data Miner 21282 | -6/Data Miner | Learned location of Section 7 (-3) 21282 | -6/Data Miner | Acquired the access code to Warlord's prototype stash 21299 | -6/Data Miner | Received God Mode back door access code from Data Miner 21385 | -6/Data Miner | Entered Proximity Caves 21605 | -5/Proximity Caves | Escorted by Enhanced Grunt 21713 | -5/Proximity Caves | Spotter reported a threat 21803 | -5/Proximity Caves | Discovered new exit (range 6) 21822 | -5/Proximity Caves | Entered Factory 21822 | -5/Factory | Accompanied by 1 ally 21822 | -5/Factory | Evolved 2 slots: Utility x2 21823 | -5/Factory | Identified exit to Upper Caves 21824 | -5/Factory | Loaded intel: 26 terminal locations 21825 | -5/Factory | Loaded intel: 4 garrison access locations 21856 | -5/Factory | Identified exit to Factory 22256 | -5/Factory | P-80 Master assimilated allied Technician 6a 22384 | -5/Factory | Entered Upper Caves 22384 | -5/Upper Caves | Accompanied by 1 ally 22498 | -5/Upper Caves | Crushed by falling debris 22514 | -5/Upper Caves | Encountered a Warlord checkpoint 22601 | -5/Upper Caves | Build established: Scavenger-Skirmisher 22706 | -5/Upper Caves | Spotted B-75 Beast 23109 | -5/Upper Caves | Identified exit to Upper Caves 23352 | -5/Upper Caves | Attracted the attention of an 0b10 checkpoint 23352 | -5/Upper Caves | Entered another Upper Caves area 23352 | -5/Upper Caves | Discovered exit to Factory (range 8) 23463 | -5/Upper Caves | Learned location of 1 exit from Factory 23486 | -5/Upper Caves | Entered an active Warlord outpost 23500 | -5/Upper Caves | Learned Armory trap positions 23500 | -5/Upper Caves | Learned Armory emergency access door positions 23500 | -5/Upper Caves | Learned Extension security intel 23500 | -5/Upper Caves | Learned Factory terminal intel 23684 | -5/Upper Caves | Attracted the attention of an 0b10 outpost 23744 | -5/Upper Caves | Lost 4 allies 24077 | -5/Upper Caves | Discovered new exit (range 12) 24094 | -5/Upper Caves | Entered Zhirov 24094 | -5/Zhirov | Accompanied by 2 allies 24097 | -5/Zhirov | Discovered new exit (range 4) 24117 | -5/Zhirov | Met Zhirov 24142 | -5/Zhirov | Learned location of Command (-1) 24162 | -5/Zhirov | Zhirov requested help retrieving the SGEMP Prototype 24183 | -5/Zhirov | Found Alien Artifact 24183 | -5/Zhirov | Identified Integrated Reactor 24183 | -5/Zhirov | Installed Integrated Reactor, increased core energy generation (+10) 24283 | -5/Zhirov | Found Alien Artifact 24377 | -5/Zhirov | Entered Proximity Caves 24377 | -4/Proximity Caves | Accompanied by 2 allies 24395 | -4/Proximity Caves | Learned Research trap positions 25011 | -4/Proximity Caves | Attracted the attention of an 0b10 checkpoint 25149 | -4/Proximity Caves | Entered Factory 25149 | -4/Factory | Evolved 2 slots: Propulsion x1, Utility x1 25150 | -4/Factory | Identified exit to Extension 25152 | -4/Factory | Loaded intel: 27 terminal locations 25417 | -4/Factory | Identified exit to Research 25501 | -4/Factory | Fabricated Quantum Reactor (x2) 25806 | -4/Factory | Repaired Arm. Huge Wheel 26099 | -4/Factory | Build established: Scavenger-Tank 26335 | -4/Factory | Entered Extension 26484 | -4/Extension | Rescued a captive Derelict 26688 | -4/Extension | Build established: Tank 26846 | -4/Extension | Spotted B-86 Titan 26850 | -4/Extension | Rescued a captive Derelict 26912 | -4/Extension | Lost 3 allies 26973 | -4/Extension | Rescued a captive Derelict 27026 | -4/Extension | Rescued a captive Derelict 27102 | -4/Extension | Rescued a captive Derelict 27104 | -4/Extension | Rescued a captive Derelict 27128 | -4/Extension | Build established: Scavenger-Tank 27342 | -4/Extension | Destroyed B-86 Titan 27350 | -4/Extension | Spotted B-86 Titan 27381 | -4/Extension | Destroyed B-86 Titan 27388 | -4/Extension | Lost 4 allies 27559 | -4/Extension | Rescued A7 27581 | -4/Extension | Rescued a captive Derelict 27581 | -4/Extension | Rescued a captive Derelict 27587 | -4/Extension | Rescued a captive Derelict 28052 | -4/Extension | Repaired Lrn. Proton Cannon 28115 | -4/Extension | Repaired Hardcell Cannon 28154 | -4/Extension | Discovered new exit (range 6) 28199 | -4/Extension | Entered Cetus 28199 | -4/Cetus | Accompanied by 12 allies (A7) 28204 | -4/Cetus | Acquired a Cetus Manufacturing Module code from A7 28212 | -4/Cetus | Build established: Commander-Skirmisher 28217 | -4/Cetus | Spotted Cetus Guard 28217 | -4/Cetus | Spotted Cetus Guard 28220 | -4/Cetus | Spotted Cetus Guard 28221 | -4/Cetus | Spotted Cetus Guard 28237 | -4/Cetus | Allies destroyed Cetus Guard 28242 | -4/Cetus | Allies destroyed Cetus Guard 28252 | -4/Cetus | Destroyed Cetus Guard 28253 | -4/Cetus | Allies destroyed Cetus Guard 28271 | -4/Cetus | Lost 5 allies 28328 | -4/Cetus | Started Cetus Manufacturing Module 28353 | -4/Cetus | Manufactured an Enhanced Grunt 28362 | -4/Cetus | Escorted A7 to Cetus Mainframe 28378 | -4/Cetus | Manufactured an Enhanced Grunt 28403 | -4/Cetus | Manufactured an Enhanced Grunt 28424 | -4/Cetus | Discovered exit to Research (range 22) 28428 | -4/Cetus | Manufactured an Enhanced Grunt 28453 | -4/Cetus | Manufactured an Enhanced Grunt 28506 | -4/Cetus | Discovered new exit (range 21) 28532 | -4/Cetus | Spotted Cetus Guard 28532 | -4/Cetus | Spotted Cetus Guard 28535 | -4/Cetus | Spotted Cetus Guard 28536 | -4/Cetus | Spotted Cetus Guard 28538 | -4/Cetus | Destroyed Cetus Guard 28546 | -4/Cetus | Allies destroyed Cetus Guard 28555 | -4/Cetus | Allies destroyed Cetus Guard 28556 | -4/Cetus | Allies destroyed Cetus Guard 28560 | -4/Cetus | Discovered exit to Research (range 21) 28574 | -4/Cetus | Met Revision 17 28664 | -4/Cetus | Entered Archives 28664 | -4/Archives | Accompanied by 10 allies (A7) 28669 | -4/Archives | Received a hacking code to weaken MAIN.C 28712 | -4/Archives | Discovered exit to Research (range 15) 28720 | -4/Archives | Lost 4 allies 28726 | -4/Archives | Discovered new exit (range 22) 28726 | -4/Archives | Discovered new exit (range 18) 28975 | -4/Archives | Build established: Scavenger-Tank 29438 | -4/Archives | Entered Hub_04(d) 29438 | -4/Hub_04(d) | Accompanied by 5 allies 29688 | -4/Hub_04(d) | First assault squad dispatched 29782 | -4/Hub_04(d) | Discovered exit to Research (range 20) 29887 | -4/Hub_04(d) | Entered Research 29887 | -3/Research | Evolved 2 slots: Power x1, Utility x1 29888 | -3/Research | Loaded intel: 105 trap records 30087 | -3/Research | Revision forces began assault on 0b10 30169 | -3/Research | Found Fusion Bomb Launcher 30176 | -3/Research | Met up with Revision 17++ 30259 | -3/Research | Build established: Scavenger-Assassin 30514 | -3/Research | Spotted B-86 Titan 30587 | -3/Research | Research terminal network offline 30738 | -3/Research | Spotted Striker 30788 | -3/Research | Spotted Striker 30790 | -3/Research | Lost 4 allies 30951 | -3/Research | Spotted Striker 30953 | -3/Research | Spotted Striker 30957 | -3/Research | Destroyed Striker 30966 | -3/Research | Destroyed Striker 31138 | -3/Research | Build established: Scavenger-Tank 31448 | -3/Research | Discovered new exit (range 20) 31472 | -3/Research | Identified exit to Research 31572 | -3/Research | Spotted Striker 31761 | -3/Research | Fabricated Centrium Leg (x1) 32159 | -3/Research | Spotted Striker 32163 | -3/Research | Spotted Striker 32164 | -3/Research | Spotted Striker 32165 | -3/Research | Spotted Striker 32176 | -3/Research | Destroyed Striker 32190 | -3/Research | Destroyed Striker 32246 | -3/Research | Lost 4 allies 32295 | -3/Research | Spotted Striker 32306 | -3/Research | Destroyed Striker 32667 | -3/Research | Destroyed Striker 32783 | -3/Research | Spotted Striker 32784 | -3/Research | Spotted Striker 32793 | -3/Research | Destroyed Striker 32802 | -3/Research | Destroyed Striker 32885 | -3/Research | Spotted Striker 32902 | -3/Research | Destroyed Striker 32907 | -3/Research | Spotted Striker 32911 | -3/Research | Spotted Striker 32912 | -3/Research | Spotted Striker 32913 | -3/Research | Spotted Striker 32915 | -3/Research | Spotted Striker 32915 | -3/Research | Identified Transdimensional Reconstructor 32915 | -3/Research | Warped through subspace 33295 | -3/Research | Spotted Striker 33300 | -3/Research | Spotted Striker 33310 | -3/Research | Destroyed Striker 33314 | -3/Research | Destroyed Striker 33442 | -3/Research | Build established: Scavenger-Skirmisher 33453 | -3/Research | Found Gamma Bomb Array 33497 | -3/Research | Spotted Striker 33499 | -3/Research | Destroyed Striker 33503 | -3/Research | Destroyed Striker 33522 | -3/Research | Spotted Striker 33526 | -3/Research | Spotted Striker 33533 | -3/Research | Destroyed Striker 33542 | -3/Research | Destroyed Striker 33594 | -3/Research | Destroyed 8 combat bots 33612 | -3/Research | Spotted Striker 33613 | -3/Research | Destroyed Striker 33623 | -3/Research | Destroyed Striker 34005 | -3/Research | Spotted Striker 34021 | -3/Research | Destroyed Striker 34237 | -3/Research | Discovered new exit (range 5) 34240 | -3/Research | Identified exit to Quarantine 34243 | -3/Research | Entered Quarantine 34493 | -3/Quarantine | First assault squad dispatched 34517 | -3/Quarantine | Incoming assault squad redirected 34599 | -3/Quarantine | Build established: Scavenger-Assassin 34633 | -3/Quarantine | Met incapacitated Sigix Warrior 34633 | -3/Quarantine | Lockdown squad dispatched 34635 | -3/Quarantine | Acquired the access code to the Sigix quarantine chamber 34637 | -3/Quarantine | Unlocked Sigix quarantine chamber 34643 | -3/Quarantine | Found Sigix Containment Pod 34696 | -3/Quarantine | Found Alien Artifact 34696 | -3/Quarantine | Identified Core Reset Matrix 34696 | -3/Quarantine | Used Core Reset Matrix 34700 | -3/Quarantine | Sensed 16 artifacts in vicinity 34738 | -3/Quarantine | Spotted Lightning 34738 | -3/Quarantine | Spotted Lightning 34738 | -3/Quarantine | Spotted Lightning 34766 | -3/Quarantine | System corruption reached 10% 34770 | -3/Quarantine | Scanned by Researcher 34804 | -3/Quarantine | Destroyed Lightning 34840 | -3/Quarantine | Lost 13 parts (1p5n4u3w) 34846 | -3/Quarantine | System corruption reached 30% 34869 | -3/Quarantine | Core integrity fell below 50% 34875 | -3/Quarantine | Released all parts (7) 34879 | -3/Quarantine | Core integrity fell below 20% 34904 | -3/Quarantine | Destroyed by P-80 Master with Gamma Rifle Last Messages --------------- 34877_ Slammed into P-80 Master. 34878_ Acquired 5 matter. 34878_ Penetrated by EMDS Slug. 34878_ Slammed into P-80 Master. 34878_ K-01 Serf collects debris. 34879_ P-80 Master resets B-74 Champion, system corruption cleaned. 34879_ Acquired 52 matter. 34879_ Extracted schematic archive: Gravity Neutralizer. 34880_ System corrupted: Matter fused (-9). 34880_ Extracted schematic archive: B-60 Warrior. 34888_ Connecting with Repair Station... 34891_ Critical hit (Burn: +50). 34894_ O-32 Director: "IFF HANDSHAKE FAILED. SECURING TERMINAL." 34895_ System corrupted: Matter fused (-5). 34895_ O-24 Administrator: "IFF HANDSHAKE FAILED. SECURING TERMINAL." 34899_ ALERT: Hostiles spotted, dispatching reinforcements to Terminal Q006. 34899_ Acquired Unknown Processor. 34899_ Identified Imp. Targeting Computer. [Achievement: Overachiever] Map ----- +----------------------------------------------------+ | ?????????????????????????????????????????????????? | | ?????????????????????????????????????????????????? | | ?????????????????????????????????????????????????? | | ?????????????????????????????????????????????????? | | ?????????????????????????????????????????????????? | | *????????????????????????????????????????????????? | | ?????????????????????????????????????????????????? | | ?????????????????????????????????????????????????? | | ?????????????????????????????????????????????????? | | ?????????????????????????????????????????????????? | | ?????????????????????????????????????????????????? | | ?????????????????????????????????????????????????? | | ?????????????????????????????????????????????????? | | ????????????????????????????+#???????????????????? | | ???????????????????????##### #???????????????????? | | ??????????????????????? #???????????????????? | | ??????????????????????? #???????????????????? | | ???????????????????????? ##??????????????????? | | ???????????????????????? ???????????????????? | | ????????????????????????# #???????????????????? | | ????????????????????????# #???????????????????? | | ????????????????????????# #???????????????????? | | ????????????????????????# #???????????????????? | | ????????????????????????# #???????????????????? | | ????????????????????????# ##########??????????? | | ????????????????????????#@ # #??????????? | | ????????????????????????# # """ #??????????? | | ????????????????????????# # """ #??????????? | | ???????? ############## # """ #??????????? | | ???????? p/ #??????????? | | ??????? p # ! """ #??????????? | | ??????? # """ #??????????? | | ??????? # """ #??????????? | | ?????????????########+######## #??????????? | | ???????????????# =###########??????????? | | ???????????????# """ """ #????????????????????? | | ???????????????# """ ""T"" #????????????????????? | | ???????????????# """ "" "" #????????????????????? | | ???????????????# #????????????????????? | | ???????????????######+#######????????????????????? | | ?????????????????# #??????????????????????? | | ??????????????#### """ ""#??????????????????????? | | ??????????????#""" """ ""#??????????????????????? | | ??????????????#"R """ "#??????????????????????? | | ??????????????#""" """ T#??????????????????????? | | ??????????????#### """ ""#??????????????????????? | | ?????????????????# """ ""#??????????????????????? | | ?????????????????# """ " ####???????????????????? | | ?????????????????# # ?????#####??????????? | | ????###### ###########/########## !#??????????? | +----------------------------------------------------+ Best States ------------- Heat Dissipation 96 Coolant Potential 120 Energy Generation 69 Energy Capacity 1600 Matter Stores 309 Matter Capacity 550 Sight Range 22 Robot Scan Range 16 Terrain Scan Range 16 Terrain Scan Density 10 ECM Strength 2 Jamming Range 16 EM Shielding 2 Armor Coverage 600 Resistance: KI 20 Resistance: TH 10 Core Shielding 20 Point Defense Rating 240 Weapon Cycling 20 Evasion (%) 70 Targeting Accuracy 6 Recoil Reduction 5 Matter Filtering 30 Kinecelleration 30 Authchip Count 1 Item Schematics ----------------- Gravity Neutralizer | -3/Quarantine | Archive Robot Schematics ------------------ B-60 Warrior | -3/Quarantine | Archive Fabricated ------------ Quantum Reactor | x2 | -4/Factory | Preloaded Centrium Leg | x1 | -3/Research | Preloaded Repaired ---------- Reactive Plating | 30% | -8/Materials Gauss Rifle | 50% | -8/Materials Minigun | 4% | -8/Materials Gauss Rifle | 26% | -8/Materials Kinecellerator | 72% | -8/Materials Gauss Rifle | 65% | -8/Materials Gauss Rifle | 27% | -7/Factory Gauss Rifle | 27% | -7/Factory Arm. Huge Wheel | 18% | -4/Factory Lrn. Proton Cannon | 27% | -4/Extension Hardcell Cannon | 36% | -4/Extension Studied --------- None Alien Tech Used ----------------- Integrated Reactor Transdimensional Reconstructor Core Reset Matrix Achievements -------------- Alien Roots False Reunion Junior Dev King Drone Overachiever Preemptive Strike Sniper Challenges ------------ None Game ------ Seed JunkReflexMatrix Manual? 0 Play Time 08:59:19 Cumulative 355.9 hours Start 2026.04.15 @ 00:47:40 End 2026.04.23 @ 00:28:55 Sessions 33 Manual Loads 0 Difficulty Rogue Special Mode None Game No. 100 Rogue 100 Adventurer 0 Explorer 0 Win Type - Total 2 Types 2/0/0/0/0/0/0/0/0/0 Lore% 65 Gallery% 59 Achievement% 50 Wizard Run 0 Options --------- Layout 0 ASCII 1 Keyboard 1 Movement Arrows Keybinds 0 Fullscreen 1 Font 24/Smallcaps Map View 76x50 Zoom Use 0% Tactical HUD 1 Map Filters NONE Filters NONE Steam 1 RUN: dfbba5a9-d9ca-4bda-90c5-bbec152ca2ac